Merchandising Type Category,Detailed Merchant Category,Supplier,Purchase Details,Transaction Date,Value,Department
Business To Business Other Sup,Uniforms & Commercial Clothing,Arco Ltd,Supplies and Services related expenditure,01/07/2019,-101.98,Director of Portsmouth International Port
Retail,Grocery Stores/Supermarkets,Asda Groceries Online,Supplies and Services related expenditure,01/07/2019,-3.3,Director of Children's Services and Education
Retail,Grocery Stores/Supermarkets,Tesco Stores 4579,Supplies and Services related expenditure,01/07/2019,8.1,Director of Children's Services and Education
Transportation,Passenger Railways,Ticketofficesale - Swtrainsports,Transport related expenditure,01/07/2019,27.5,Director of Corporate Services
Business To Business Services,Misc Publishing & Printing,Www.Shaws.Co.Uk,Supplies and Services related expenditure,01/07/2019,43.95,Director of Corporate Services
Transportation,Bus Lines/Charter/Tour,The Provincial Bus,Agency and Third Party Payments related expenditure,01/07/2019,35,Director of Children's Services and Education
Transportation,Passenger Railways,Selfserve Ticket - Swtrainsports,Transport related expenditure,01/07/2019,22,"Director of Housing, Neighbourhood and Building Services"
Transportation,Passenger Railways,Ticketofficesale - Swtrainsports,Transport related expenditure,01/07/2019,60.5,"Director of Housing, Neighbourhood and Building Services"
Transportation,Passenger Railways,Ticketofficesale - Swtrainsports,Transport related expenditure,01/07/2019,60.5,"Director of Housing, Neighbourhood and Building Services"
Business Services,Business Services - Default,Www.Pmgltd.Co.Uk,Supplies and Services related expenditure,01/07/2019,199,"Director of Housing, Neighbourhood and Building Services"
Transportation,"Parking Lots, Meters, Garages",Paybyphone,Agency and Third Party Payments related expenditure,01/07/2019,5.17,Director of Children's Services and Education
Clothing/Uniform Services,Dry Cleaners,Laundrycare Premier Servi,Supplies and Services related expenditure,01/07/2019,120,"Director of Housing, Neighbourhood and Building Services"
Retail,Grocery Stores/Supermarkets,Tesco Store 3055,Supplies and Services related expenditure,01/07/2019,46.12,Director of Children's Services and Education
Retail,Grocery Stores/Supermarkets,Tesco Store 3055,Supplies and Services related expenditure,01/07/2019,66.48,Director of Children's Services and Education
Retail,Grocery Stores/Supermarkets,Tesco Store 3055,Supplies and Services related expenditure,01/07/2019,13.08,Director of Children's Services and Education
Retail,Grocery Stores/Supermarkets,Tesco Store 3055,Supplies and Services related expenditure,01/07/2019,3.2,Director of Children's Services and Education
Retail,Grocery Stores/Supermarkets,Tesco Store 3055,Supplies and Services related expenditure,01/07/2019,39.51,Director of Children's Services and Education
Retail,Grocery Stores/Supermarkets,Tesco Stores 2322,Supplies and Services related expenditure,01/07/2019,50,Director of Children's Services and Education
Hotels And Motels,Hotel Ibis,Hotel Ibis,Supplies and Services related expenditure,01/07/2019,101.33,Director of Children's Services and Education
Retail,Grocery Stores/Supermarkets,Fruit Basket Ltd,Supplies and Services related expenditure,01/07/2019,106.76,"Director of Housing, Neighbourhood and Building Services"
Business Expenses/Services,Stationery Stores,Www.Primaryteaching.Co,Supplies and Services related expenditure,01/07/2019,22.14,Director of Children's Services and Education
Retail,Grocery Stores/Supermarkets,Asda Groceries Online,Supplies and Services related expenditure,01/07/2019,21.66,Director of Children's Services and Education
Retail,Grocery Stores/Supermarkets,Asda Groceries Online,Supplies and Services related expenditure,01/07/2019,201.72,Director of Children's Services and Education
Facilities/Repair Supplies,Bicycle Shops/Sales/Service,Halfords 0852,Supplies and Services related expenditure,01/07/2019,15,"Director of Housing, Neighbourhood and Building Services"
Government,Govt Serv - Default,Www.Moneyclaim.Gov,Supplies and Services related expenditure,01/07/2019,35,Director of Finance & IT
Government,Govt Serv - Default,Www.Moneyclaim.Gov,Supplies and Services related expenditure,01/07/2019,35,Director of Finance & IT
Government,Colleges/Univ/Jc/Profession,Guildford College Financ,Employees related expenditure,01/07/2019,383.33,"Director of Culture, Leisure & Regulatory Services"
Retail,Electronics Sales,Currys Pc World,Supplies and Services related expenditure,01/07/2019,366,Director of Children's Services and Education
Retail,Grocery Stores/Supermarkets,Tesco Stores 5837,Supplies and Services related expenditure,01/07/2019,7.95,Director of Children's Services and Education
Retail,Grocery Stores/Supermarkets,Tesco Stores 5837,Supplies and Services related expenditure,01/07/2019,8.17,Director of Children's Services and Education
Transportation,Local Commuter Transport,Wightlink Tvm,Transport related expenditure,01/07/2019,15.6,Director of Children's Services and Education
Eating And Drinking Places,Eating Places/Restaurants,Las Iguanas,Supplies and Services related expenditure,01/07/2019,250,Director of Children's Services and Education
Retail,Grocery Stores/Supermarkets,Asda Groceries Online,Supplies and Services related expenditure,01/07/2019,-1.36,Director of Children's Services and Education
Retail,Grocery Stores/Supermarkets,Asda Groceries Online,Supplies and Services related expenditure,01/07/2019,93.36,Director of Children's Services and Education
Government,Govt Serv - Default,Staunton Country Park,Supplies and Services related expenditure,01/07/2019,1.5,Director of Children's Services and Education
Government,Govt Serv - Default,Queen Elizabeth Countr,Supplies and Services related expenditure,01/07/2019,2.67,Director of Children's Services and Education
Government,Govt Serv - Default,Staunton Country Park,Supplies and Services related expenditure,01/07/2019,4.99,Director of Children's Services and Education
Business Services,Business Services - Default,Eb *portsmouth Inclusi,Employees related expenditure,01/07/2019,91.02,Director of Children's Services and Education
Business Services,Business Services - Default,Eb *portsmouth Inclusi,Employees related expenditure,01/07/2019,91.02,Director of Children's Services and Education
Transportation,Passenger Railways,Ticketofficesale - Swtrainsports,Transport related expenditure,01/07/2019,13.1,Director of Adult Services
Transportation,Passenger Railways,Ticketofficesale - Swtrainsports,Transport related expenditure,01/07/2019,13.1,Director of Adult Services
Transportation,Passenger Railways,Ticketofficesale - Swtrainsports,Transport related expenditure,01/07/2019,13.1,Director of Adult Services
Retail,Sporting Goods Stores,Sportsdirect.Com,Supplies and Services related expenditure,01/07/2019,59.99,Director of Regeneration
Business To Business Facility/,Industrial Supplies - Def,Www.Arco.Co.Uk,Supplies and Services related expenditure,01/07/2019,117.27,Director of Regeneration
Facilities/Repair Supplies,Swimming Pools/Sales/Serv,Commercial Leisure,Supplies and Services related expenditure,01/07/2019,178.32,"Director of Culture, Leisure & Regulatory Services"
Government,Govt Serv - Default,Portsmouth City Co,Supplies and Services related expenditure,01/07/2019,76,Director of Children's Services and Education
Facilities/Repair Supplies,Lumber/Build. Supply Stores,B & Q 1260,Transport related expenditure,01/07/2019,50,Director of Adult Services
Facilities/Repair Supplies,Lawn/Garden Supply/Nursery,M & S Enterprises,Supplies and Services related expenditure,01/07/2019,153.9,"Director of Housing, Neighbourhood and Building Services"
Facilities/Repair Supplies,Lawn/Garden Supply/Nursery,M & S Enterprises,Supplies and Services related expenditure,01/07/2019,153.9,"Director of Housing, Neighbourhood and Building Services"
Business Services,Advertising Services,Facebk 55br5mj8z2,Supplies and Services related expenditure,01/07/2019,1.81,Director of Corporate Services
Other Supplies,Misc Speciality Retail,Amznmktplace,Supplies and Services related expenditure,01/07/2019,11.75,Director of Children's Services and Education
Retail,Electronics Sales,Currys Pc World,Supplies and Services related expenditure,01/07/2019,-439.2,Director of Children's Services and Education
Entertainment,Member Clubs/Sport/Rec/Golf,Horizon Leisure Trust,Supplies and Services related expenditure,01/07/2019,3.3,Director of Adult Services
Eating And Drinking Places,Eating Places/Restaurants,Subway 65660,Supplies and Services related expenditure,01/07/2019,2.79,Director of Children's Services and Education
Transportation,Passenger Railways,Ticketofficesale - Swtrainsports,Transport related expenditure,01/07/2019,10.4,Director of Regeneration
Transportation,Passenger Railways,Ticketofficesale - Swtrainsports,Transport related expenditure,01/07/2019,10.4,Director of Regeneration
Transportation,"Parking Lots, Meters, Garages",Queen Alexandra Hopita,Transport related expenditure,01/07/2019,2.67,Director of Public Health
Retail,Grocery Stores/Supermarkets,Wm Morrisons Store,Supplies and Services related expenditure,01/07/2019,2.92,Director of Children's Services and Education
Retail,Grocery Stores/Supermarkets,Wm Morrisons Store,Supplies and Services related expenditure,01/07/2019,17.5,Director of Children's Services and Education
Retail,Grocery Stores/Supermarkets,Asda Superstore,Supplies and Services related expenditure,01/07/2019,4.03,Director of Adult Services
Hotels And Motels,Travelodge,Travelodge Gb0000,Agency and Third Party Payments related expenditure,01/07/2019,10.5,"Director of Housing, Neighbourhood and Building Services"
Hotels And Motels,Travelodge,Travelodge Gb0000,Agency and Third Party Payments related expenditure,01/07/2019,70,"Director of Housing, Neighbourhood and Building Services"
Hotels And Motels,Travelodge,Travelodge Gb0000,Agency and Third Party Payments related expenditure,01/07/2019,441,"Director of Housing, Neighbourhood and Building Services"
Hotels And Motels,Travelodge,Travelodge Gb0000,Agency and Third Party Payments related expenditure,01/07/2019,2085.83,"Director of Housing, Neighbourhood and Building Services"
Retail,Electronics Sales,Fastlec,Premises related expenditure,01/07/2019,65.4,Director of Portsmouth International Port
Business Services,Business Services - Default,Posturite Ltd,Supplies and Services related expenditure,01/07/2019,137.49,Director of Finance & IT
Business Services,Business Services - Default,Posturite Ltd,Supplies and Services related expenditure,01/07/2019,12.99,Director of Finance & IT
Retail,Grocery Stores/Supermarkets,Tesco Stores 4579,Supplies and Services related expenditure,01/07/2019,2.92,Director of Adult Services
Retail,Grocery Stores/Supermarkets,Tesco Stores 4579,Supplies and Services related expenditure,01/07/2019,22.86,Director of Adult Services
Eating And Drinking Places,Eating Places/Restaurants,Dominos Pizza UK & Irelan,Supplies and Services related expenditure,01/07/2019,79.95,Director of Children's Services and Education
Eating And Drinking Places,Eating Places/Restaurants,Subway,Supplies and Services related expenditure,01/07/2019,1.25,Director of Children's Services and Education
Eating And Drinking Places,Eating Places/Restaurants,Subway,Supplies and Services related expenditure,01/07/2019,4.67,Director of Children's Services and Education
Other Supplies,Misc Speciality Retail,Amznmktplace,Supplies and Services related expenditure,01/07/2019,15.49,Director of Children's Services and Education
Other Supplies,Department Stores,Southern Co-Op 0008,Supplies and Services related expenditure,01/07/2019,5.63,Director of Children's Services and Education
Retail,Barber/Beauty Shops,Sally Salon Servic,Supplies and Services related expenditure,01/07/2019,5.94,Director of Children's Services and Education
Retail,Grocery Stores/Supermarkets,Tesco Stores 4579,Supplies and Services related expenditure,01/07/2019,17.45,Director of Children's Services and Education
Retail,Drug Stores & Pharmacies,Lloyds Pharmacy,Supplies and Services related expenditure,01/07/2019,27.49,Director of Children's Services and Education
Retail,Grocery Stores/Supermarkets,Farmfoods- Portsmo,Supplies and Services related expenditure,01/07/2019,16.67,Director of Children's Services and Education
Retail,Grocery Stores/Supermarkets,Farmfoods- Portsmo,Supplies and Services related expenditure,01/07/2019,7.48,Director of Children's Services and Education
Retail,Grocery Stores/Supermarkets,Farmfoods- Portsmo,Supplies and Services related expenditure,01/07/2019,32.8,Director of Children's Services and Education
Retail,Grocery Stores/Supermarkets,Wm Morrisons Store,Supplies and Services related expenditure,01/07/2019,5.83,Director of Children's Services and Education
Retail,Grocery Stores/Supermarkets,Wm Morrisons Store,Supplies and Services related expenditure,01/07/2019,100.96,Director of Children's Services and Education
Other Supplies,Department Stores,Southern Co-Op 0214,Supplies and Services related expenditure,01/07/2019,8.89,Director of Children's Services and Education
Transportation,Passenger Railways,Ticketofficesale - Swtrainsports,Transport related expenditure,01/07/2019,12,Director of Children's Services and Education
Government,Govt Serv - Default,Hm Passport Office,Supplies and Services related expenditure,01/07/2019,85,Director of Children's Services and Education
Retail,Grocery Stores/Supermarkets,Tesco Store 3048,Supplies and Services related expenditure,01/07/2019,90,Director of Children's Services and Education
Retail,Grocery Stores/Supermarkets,Tesco Store 3048,Supplies and Services related expenditure,01/07/2019,10,Director of Children's Services and Education
Eating And Drinking Places,Eating Places/Restaurants,Cafe Henry,Supplies and Services related expenditure,01/07/2019,1.5,"Director of Culture, Leisure & Regulatory Services"
Transportation,"Parking Lots, Meters, Garages",Portsmouth City Co,Transport related expenditure,01/07/2019,10.25,Chief Exec
Retail,Grocery Stores/Supermarkets,Asda Groceries Online,Supplies and Services related expenditure,01/07/2019,-0.55,Director of Children's Services and Education
Retail,Grocery Stores/Supermarkets,Asda Groceries Online,Supplies and Services related expenditure,01/07/2019,68.75,Director of Children's Services and Education
Other Supplies,Misc Gen Merchandise - Def,Asher Design & Print L,Supplies and Services related expenditure,01/07/2019,6.5,Director of Children's Services and Education
Transportation,"Parking Lots, Meters, Garages",Gunwharf Quays,Transport related expenditure,01/07/2019,16.67,Director of Children's Services and Education
Eating And Drinking Places,Eating Places/Restaurants,Las Iguanas,Supplies and Services related expenditure,01/07/2019,247.34,Director of Children's Services and Education
Medical,Lab/Med/Hospital Equipment,Backcare Solutions Ltd,Supplies and Services related expenditure,01/07/2019,208.5,"Director of Housing, Neighbourhood and Building Services"
Other Supplies,Misc Speciality Retail,Amazon.Co.Uk,Premises related expenditure,01/07/2019,184.32,"Director of Housing, Neighbourhood and Building Services"
Business To Business Facility/,Hardware Equipment/Supplies,Orbitalfasteners.Co.Uk,Supplies and Services related expenditure,01/07/2019,16.85,"Director of Housing, Neighbourhood and Building Services"
Entertainment,Billiard/Pool Establishment,Craneswater Club,Supplies and Services related expenditure,01/07/2019,2.88,Director of Children's Services and Education
Eating And Drinking Places,Fast Food Restaurants,Starbucks Coffee,Supplies and Services related expenditure,01/07/2019,3.85,Director of Children's Services and Education
Eating And Drinking Places,Fast Food Restaurants,Micks Mobile Catering,Supplies and Services related expenditure,01/07/2019,1.25,Director of Children's Services and Education
Eating And Drinking Places,Fast Food Restaurants,Micks Mobile Catering,Supplies and Services related expenditure,01/07/2019,3.6,Director of Children's Services and Education
Equipment And Furniture,Phone Serv/Equip Non-Util,South West Comm Grp Ltd,Supplies and Services related expenditure,01/07/2019,145.5,Director of Children's Services and Education
Equipment And Furniture,Household Appliance Stores,Wilko Retail Limit,Supplies and Services related expenditure,01/07/2019,7.45,Director of Children's Services and Education
Retail,Shoe Repair/Shine/Hat Clean,Timpson Ltd,Supplies and Services related expenditure,01/07/2019,11.25,Director of Children's Services and Education
Retail,Grocery Stores/Supermarkets,Tesco Store 3048,Supplies and Services related expenditure,01/07/2019,16.2,Director of Children's Services and Education
Retail,Grocery Stores/Supermarkets,Sainsburys S/mkts,Supplies and Services related expenditure,01/07/2019,17.65,Director of Children's Services and Education
Facilities/Repair Supplies,Home Supply Warehouse Stores,Screwfix Direct,Supplies and Services related expenditure,01/07/2019,30.8,Director of Portsmouth International Port
Business Expenses/Services,Stationery Stores,Manuscript Pen Co.,Supplies and Services related expenditure,01/07/2019,7.06,Director of Children's Services and Education
Retail,Grocery Stores/Supermarkets,Sainsburys S/mkts,Supplies and Services related expenditure,01/07/2019,25.35,Director of Children's Services and Education
Retail,Grocery Stores/Supermarkets,Sainsburys S/mkts,Supplies and Services related expenditure,01/07/2019,0.17,Director of Children's Services and Education
Government,Govt Serv - Default,Havant Brgh Council,Premises related expenditure,01/07/2019,45,"Director of Housing, Neighbourhood and Building Services"
Government,Govt Serv - Default,Havant Brgh Council,Premises related expenditure,01/07/2019,45,"Director of Housing, Neighbourhood and Building Services"
Other Supplies,Misc Speciality Retail,Amznmktplace Amazon.Co.Uk,Supplies and Services related expenditure,01/07/2019,8.04,Director of Children's Services and Education
Other Supplies,Misc Speciality Retail,Amznmktplace,Supplies and Services related expenditure,01/07/2019,7.07,Director of Children's Services and Education
Government,Govt Serv - Default,Hampshire County Counc,Supplies and Services related expenditure,01/07/2019,12.21,Director of Children's Services and Education
Government,Govt Serv - Default,Hampshire County Counc,Supplies and Services related expenditure,01/07/2019,37.25,Director of Children's Services and Education
Other Supplies,Misc Speciality Retail,Amznmktplace,Supplies and Services related expenditure,01/07/2019,40.83,Director of Children's Services and Education
Facilities/Repair Supplies,Lumber/Build. Supply Stores,B & Q 1260,Capital related expenditure,01/07/2019,15.05,Capital - Leader
Retail,Grocery Stores/Supermarkets,Lidl Gb,Supplies and Services related expenditure,01/07/2019,44.38,"Director of Housing, Neighbourhood and Building Services"
Miscellaneous,Fines,Combined Court Cen,Supplies and Services related expenditure,01/07/2019,215,Director of Children's Services and Education
Retail,Grocery Stores/Supermarkets,Asda Stores,Supplies and Services related expenditure,01/07/2019,13.33,Director of Adult Services
Business Expenses/Services,News Dealers/Newsstands,Wh Smith,Supplies and Services related expenditure,01/07/2019,3.98,Director of Children's Services and Education
Eating And Drinking Places,Fast Food Restaurants,McDonalds,Supplies and Services related expenditure,01/07/2019,9.32,Director of Children's Services and Education
Hotels And Motels,Travelodge,Travelodge Gb0000,Agency and Third Party Payments related expenditure,01/07/2019,-47.25,"Director of Housing, Neighbourhood and Building Services"
Hotels And Motels,Travelodge,Travelodge Gb0000,Agency and Third Party Payments related expenditure,01/07/2019,-529.63,"Director of Housing, Neighbourhood and Building Services"
Hotels And Motels,Travelodge,Travelodge Gb0000,Agency and Third Party Payments related expenditure,01/07/2019,1598.38,"Director of Housing, Neighbourhood and Building Services"
Hotels And Motels,Travelodge,Travelodge Gb0000,Agency and Third Party Payments related expenditure,01/07/2019,294,"Director of Housing, Neighbourhood and Building Services"
Retail,Grocery Stores/Supermarkets,Asda Groceries Online,Supplies and Services related expenditure,01/07/2019,49.21,Director of Children's Services and Education
Other Supplies,Discount Stores,Www.Argos.Co.Uk,Supplies and Services related expenditure,01/07/2019,124.99,"Director of Housing, Neighbourhood and Building Services"
Eating And Drinking Places,Fast Food Restaurants,Darcys,Supplies and Services related expenditure,01/07/2019,4.3,Director of Children's Services and Education
Other Supplies,Misc Speciality Retail,Amznmktplace,Supplies and Services related expenditure,01/07/2019,6.24,Director of Children's Services and Education
Retail,Grocery Stores/Supermarkets,Asda Groceries Online,Supplies and Services related expenditure,01/07/2019,-0.4,Director of Children's Services and Education
Retail,Grocery Stores/Supermarkets,Asda Groceries Online,Supplies and Services related expenditure,01/07/2019,-0.44,Director of Children's Services and Education
Other Supplies,Misc Speciality Retail,Amznmktplace,Supplies and Services related expenditure,01/07/2019,16.53,Director of Children's Services and Education
Retail,Grocery Stores/Supermarkets,Asda Groceries Online,Supplies and Services related expenditure,01/07/2019,69.45,Director of Children's Services and Education
Retail,Grocery Stores/Supermarkets,Asda Groceries Online,Supplies and Services related expenditure,01/07/2019,21.16,Director of Children's Services and Education
Retail,Grocery Stores/Supermarkets,Asda Groceries Online,Supplies and Services related expenditure,01/07/2019,65.31,Director of Children's Services and Education
Retail,Sporting Goods Stores,Sportsdirect 219,Supplies and Services related expenditure,01/07/2019,23.33,Director of Children's Services and Education
Equipment And Furniture,Household Appliance Stores,Machine Mart Ltd,Supplies and Services related expenditure,01/07/2019,32.98,Director of Children's Services and Education
Retail,Grocery Stores/Supermarkets,Tesco Store 3055,Supplies and Services related expenditure,01/07/2019,58.64,Director of Children's Services and Education
Facilities/Repair Supplies,Hardware Stores,Toolstation Ltd,Premises related expenditure,01/07/2019,7.4,Director of Children's Services and Education
Transportation,Passenger Railways,Ticketofficesale - Swtrainsports,Transport related expenditure,01/07/2019,77,Capital - Traffic & Transportation
Retail,Record Shops,Amazon Music,Supplies and Services related expenditure,01/07/2019,12.49,Director of Adult Services
Government,Schools - Default,Vue*ncs Citb Hs&e Test,Employees related expenditure,01/07/2019,21,"Director of Housing, Neighbourhood and Building Services"
Transportation,Passenger Railways,Se Friars Bridge Crt T,Supplies and Services related expenditure,01/07/2019,228.6,Director of Children's Services and Education
Miscellaneous,Civic/Social/Fraternal Assc,Government Events,Supplies and Services related expenditure,01/07/2019,758,"Director of Housing, Neighbourhood and Building Services"
Retail,Grocery Stores/Supermarkets,Tesco Store 3055,Supplies and Services related expenditure,01/07/2019,13.5,Director of Children's Services and Education
Retail,Grocery Stores/Supermarkets,Tesco Store 3055,Supplies and Services related expenditure,01/07/2019,16.35,Director of Children's Services and Education
Retail,Grocery Stores/Supermarkets,Tesco Store 3055,Supplies and Services related expenditure,01/07/2019,12.53,Director of Children's Services and Education
Retail,Grocery Stores/Supermarkets,Tesco Store 3055,Supplies and Services related expenditure,01/07/2019,60.78,Director of Children's Services and Education
Retail,Grocery Stores/Supermarkets,Sainsburys Smkts,Supplies and Services related expenditure,01/07/2019,3.35,"Director of Housing, Neighbourhood and Building Services"
Facilities/Repair Supplies,Lumber/Build. Supply Stores,B & Q 1260,Premises related expenditure,01/07/2019,9.57,"Director of Housing, Neighbourhood and Building Services"
Facilities/Repair Services,Small Appliance Repair Def,Hooper Services Ltd,Supplies and Services related expenditure,01/07/2019,169.09,"Director of Housing, Neighbourhood and Building Services"
Transportation,Passenger Railways,Selfserve Ticket - Swtrains Soto,Transport related expenditure,01/07/2019,11.9,Chief Exec
Miscellaneous,Other Direct Marketers,Amazon.Co.Uk,Premises related expenditure,01/07/2019,11.24,Director of Adult Services
Other Supplies,Misc Speciality Retail,Amznmktplace,Premises related expenditure,01/07/2019,14.42,Director of Adult Services
Other Supplies,Misc Speciality Retail,Amznmktplace,Supplies and Services related expenditure,01/07/2019,21.65,Director of Adult Services
Professional Services,Professional Services - Def,Clinicare Supplies Ltd,Supplies and Services related expenditure,01/07/2019,228.12,Director of Adult Services
Eating And Drinking Places,Eating Places/Restaurants,Costa,Supplies and Services related expenditure,01/07/2019,1.75,Director of Children's Services and Education
Eating And Drinking Places,Eating Places/Restaurants,Costa,Supplies and Services related expenditure,01/07/2019,3.45,Director of Children's Services and Education
Retail,Grocery Stores/Supermarkets,Aldi Stores Ltd,Supplies and Services related expenditure,01/07/2019,2.82,Director of Children's Services and Education
Automobile Services & Supplies,Service Stations,Tesco Pfs 2339,Supplies and Services related expenditure,01/07/2019,3.42,Director of Children's Services and Education
Retail,Grocery Stores/Supermarkets,Lidl Gb Portsmouth,Supplies and Services related expenditure,01/07/2019,11.43,Director of Children's Services and Education
Retail,Grocery Stores/Supermarkets,One Stop 1339,Supplies and Services related expenditure,01/07/2019,2.2,Director of Children's Services and Education
Professional Services,Professional Services - Def,Www.Tes.Com,Supplies and Services related expenditure,01/07/2019,54.5,Director of Children's Services and Education
Professional Services,Professional Services - Def,Www.Tes.Com,Supplies and Services related expenditure,01/07/2019,45.42,Director of Children's Services and Education
Automobile Services & Supplies,Service Stations,Asda Petrol 4583,Premises related expenditure,01/07/2019,62,"Director of Housing, Neighbourhood and Building Services"
Medical,Lab/Med/Hospital Equipment,Wightman & Parrish,Premises related expenditure,01/07/2019,142.49,"Director of Housing, Neighbourhood and Building Services"
Business Services,Business Services - Default,Www.Vegware.Co.Uk,Supplies and Services related expenditure,01/07/2019,65.61,"Director of Housing, Neighbourhood and Building Services"
Retail,Grocery Stores/Supermarkets,Js Online Grocery,Supplies and Services related expenditure,01/07/2019,-0.63,Director of Children's Services and Education
Retail,Grocery Stores/Supermarkets,Js Online Grocery,Supplies and Services related expenditure,01/07/2019,7.13,Director of Children's Services and Education
Retail,Grocery Stores/Supermarkets,Js Online Grocery,Supplies and Services related expenditure,01/07/2019,17.25,Director of Children's Services and Education
Retail,Grocery Stores/Supermarkets,Js Online Grocery,Supplies and Services related expenditure,01/07/2019,4.17,Director of Children's Services and Education
Retail,Grocery Stores/Supermarkets,Js Online Grocery,Supplies and Services related expenditure,01/07/2019,65.55,Director of Children's Services and Education
Retail,Grocery Stores/Supermarkets,Js Online Grocery,Supplies and Services related expenditure,01/07/2019,4.5,Director of Children's Services and Education
Retail,Grocery Stores/Supermarkets,Js Online Grocery,Supplies and Services related expenditure,01/07/2019,66.09,Director of Children's Services and Education
Other Supplies,Misc Speciality Retail,Amznmktplace,Supplies and Services related expenditure,01/07/2019,4.94,Director of Corporate Services
Retail,Grocery Stores/Supermarkets,Tesco Stores 4579,Supplies and Services related expenditure,01/07/2019,16.04,Director of Children's Services and Education
Entertainment,Tourist Attractions And Xhbt,Www.Marwell.Org.Uk,Supplies and Services related expenditure,01/07/2019,25.48,Director of Children's Services and Education
Other Supplies,Department Stores,The Range,Supplies and Services related expenditure,01/07/2019,3.28,Director of Adult Services
Retail,Grocery Stores/Supermarkets,Wm Morrisons Store,Supplies and Services related expenditure,01/07/2019,13.31,Director of Adult Services
Business To Business Eqpt/Furn,Stationery/Office Supplies,Repropoint - Woking,Supplies and Services related expenditure,01/07/2019,54.95,"Director of Housing, Neighbourhood and Building Services"
Transportation,Passenger Railways,Trainline.Com,Transport related expenditure,01/07/2019,73.65,"Director of Housing, Neighbourhood and Building Services"
Retail,Grocery Stores/Supermarkets,Lidl Gb Portsmouth,Supplies and Services related expenditure,01/07/2019,3.33,Director of Adult Services
Clothing/Shoes/Uniforms,Shoe Stores,Shoe Zone,Supplies and Services related expenditure,01/07/2019,16.7,Director of Children's Services and Education
Retail,Grocery Stores/Supermarkets,Tesco Stores 5475,Supplies and Services related expenditure,01/07/2019,19.99,Director of Children's Services and Education
Transportation,Bus Lines/Charter/Tour,The Provincial Bus,Supplies and Services related expenditure,01/07/2019,30,Director of Children's Services and Education
Eating And Drinking Places,Fast Food Restaurants,McDonalds,Supplies and Services related expenditure,01/07/2019,3.97,Director of Children's Services and Education
Entertainment,Bands/Orchestras/Entertain,Pyramids Centre,Agency and Third Party Payments related expenditure,01/07/2019,3.15,Director of Children's Services and Education
Entertainment,Bands/Orchestras/Entertain,Pyramids Centre,Agency and Third Party Payments related expenditure,01/07/2019,3.15,Director of Children's Services and Education
Retail,Grocery Stores/Supermarkets,Asda Groceries Online,Supplies and Services related expenditure,01/07/2019,37.7,Director of Children's Services and Education
Retail,Grocery Stores/Supermarkets,Tesco Stores 4579,Supplies and Services related expenditure,01/07/2019,5.45,Director of Children's Services and Education
Retail,Grocery Stores/Supermarkets,Tesco Stores 4579,Supplies and Services related expenditure,01/07/2019,52.35,Director of Children's Services and Education
Facilities Maintenance,Clean/Maint/Janitoral Serv,Suez Recycling&recover,Premises related expenditure,01/07/2019,53.54,Director of Adult Services
Retail,Grocery Stores/Supermarkets,Fruit Basket Ltd,Supplies and Services related expenditure,01/07/2019,103.65,Director of Adult Services
Retail,Misc Food Stores - Default,Bransbury Park Butchers,Supplies and Services related expenditure,01/07/2019,107.48,Director of Adult Services
Professional Services,Mgmt/Consult/Public Rel Ser,Tvlicensing.Co.Uk,Supplies and Services related expenditure,01/07/2019,154.5,"Director of Housing, Neighbourhood and Building Services"
Professional Services,Mgmt/Consult/Public Rel Ser,Tvlicensing.Co.Uk,Supplies and Services related expenditure,01/07/2019,154.5,"Director of Housing, Neighbourhood and Building Services"
Other Supplies,Misc Speciality Retail,Amazon.Co.Uk,Premises related expenditure,01/07/2019,13.32,"Director of Housing, Neighbourhood and Building Services"
Equipment And Furniture,Equip/Furn Rent/Lease Serv,Machine Mart Web,Supplies and Services related expenditure,01/07/2019,7.65,"Director of Housing, Neighbourhood and Building Services"
Transportation,Passenger Railways,Trainline.Com,Transport related expenditure,01/07/2019,-32.8,Director of Children's Services and Education
Transportation,Passenger Railways,Trainline.Com,Transport related expenditure,01/07/2019,33,Director of Children's Services and Education
Transportation,Passenger Railways,Trainline.Com,Transport related expenditure,01/07/2019,45.05,Director of Children's Services and Education
Hotels And Motels,Premier Travel Inns,Premier Inn 44537180,Agency and Third Party Payments related expenditure,01/07/2019,31.67,"Director of Housing, Neighbourhood and Building Services"
Hotels And Motels,Premier Travel Inns,Premier Inn 44537180,Agency and Third Party Payments related expenditure,01/07/2019,451.67,"Director of Housing, Neighbourhood and Building Services"
Hotels And Motels,Premier Travel Inns,Premier Inn 44537180,Agency and Third Party Payments related expenditure,01/07/2019,671.67,"Director of Housing, Neighbourhood and Building Services"
Facilities/Repair Supplies,Hardware Stores,Addison Saws Ltd,Premises related expenditure,01/07/2019,157.24,Director of Portsmouth International Port
Other Supplies,Misc Speciality Retail,Amazon.Co.Uk,Premises related expenditure,01/07/2019,334.88,"Director of Housing, Neighbourhood and Building Services"
Professional Services,Mgmt/Consult/Public Rel Ser,Tvlicensing.Co.Uk,Supplies and Services related expenditure,01/07/2019,154.5,"Director of Housing, Neighbourhood and Building Services"
Professional Services,Mgmt/Consult/Public Rel Ser,Tvlicensing.Co.Uk,Supplies and Services related expenditure,01/07/2019,154.5,"Director of Housing, Neighbourhood and Building Services"
Professional Services,Mgmt/Consult/Public Rel Ser,Tvlicensing.Co.Uk,Supplies and Services related expenditure,01/07/2019,154.5,"Director of Housing, Neighbourhood and Building Services"
Professional Services,Mgmt/Consult/Public Rel Ser,Tvlicensing.Co.Uk,Supplies and Services related expenditure,01/07/2019,154.5,"Director of Housing, Neighbourhood and Building Services"
Hotels And Motels,Premier Travel Inns,Premier Inn44017195,Agency and Third Party Payments related expenditure,01/07/2019,612.08,"Director of Housing, Neighbourhood and Building Services"
Hotels And Motels,Premier Travel Inns,Premier Inn 44537535,Supplies and Services related expenditure,01/07/2019,82.5,Director of Finance & IT
Business Expenses/Services,Postage Stamps,Post Office Counter,Supplies and Services related expenditure,02/07/2019,88.45,Director of Children's Services and Education
Facilities/Repair Supplies,Lumber/Build. Supply Stores,Covers Portsmouth 10,Supplies and Services related expenditure,02/07/2019,127.32,Director of Children's Services and Education
Business Expenses/Services,Postage Stamps,Post Office Counter,Supplies and Services related expenditure,02/07/2019,3.55,Director of Adult Services
Other Supplies,Department Stores,The Range,Supplies and Services related expenditure,02/07/2019,38.32,Director of Adult Services
Facilities/Repair Supplies,Lumber/Build. Supply Stores,B & Q 1260,Supplies and Services related expenditure,02/07/2019,94.18,Director of Adult Services
Equipment And Furniture,Household Appliance Stores,Tlc Southern Ltd,Supplies and Services related expenditure,02/07/2019,32.5,"Director of Housing, Neighbourhood and Building Services"
Retail,Grocery Stores/Supermarkets,Co-Op Group Food,Supplies and Services related expenditure,02/07/2019,0.83,Director of Children's Services and Education
Government,Schools - Default,Wpy*releasing Potenti,Employees related expenditure,02/07/2019,90.72,Director of Children's Services and Education
Government,Govt Serv - Default,Portsmouth City Co,Agency and Third Party Payments related expenditure,02/07/2019,31.67,Director of Children's Services and Education
Government,Govt Serv - Default,Portsmouth City Co,Agency and Third Party Payments related expenditure,02/07/2019,31.67,Director of Children's Services and Education
Freight/Courier/Warehouse Svcs,Public Warehousing,Www.Safestore.Co.Uk,Premises related expenditure,02/07/2019,32.18,"Director of Housing, Neighbourhood and Building Services"
Miscellaneous,Charitable/Soc Service Orgs,The Salvation Army,Capital related expenditure,02/07/2019,190,Capital - Housing RA
Retail,Drug Stores & Pharmacies,Boots 1524,Supplies and Services related expenditure,02/07/2019,200,"Director of Housing, Neighbourhood and Building Services"
Retail,Drug Stores & Pharmacies,Boots 1524,Supplies and Services related expenditure,02/07/2019,200,"Director of Housing, Neighbourhood and Building Services"
Retail,Drug Stores & Pharmacies,Boots 1524,Supplies and Services related expenditure,02/07/2019,200,"Director of Housing, Neighbourhood and Building Services"
Retail,Drug Stores & Pharmacies,Boots 1524,Supplies and Services related expenditure,02/07/2019,200,"Director of Housing, Neighbourhood and Building Services"
Retail,Drug Stores & Pharmacies,Boots 1524,Supplies and Services related expenditure,02/07/2019,200,"Director of Housing, Neighbourhood and Building Services"
Miscellaneous,Charitable/Soc Service Orgs,The Salvation Army,Capital related expenditure,02/07/2019,250,Capital - Housing RA
Freight/Courier/Warehouse Svcs,Public Warehousing,Big Yellow S S Portsmout,Premises related expenditure,02/07/2019,227,"Director of Housing, Neighbourhood and Building Services"
Freight/Courier/Warehouse Svcs,Public Warehousing,Big Yellow S S Portsmout,Premises related expenditure,02/07/2019,26,"Director of Housing, Neighbourhood and Building Services"
Eating And Drinking Places,Eating Places/Restaurants,Subway,Supplies and Services related expenditure,02/07/2019,8.83,Director of Children's Services and Education
Transportation,"Parking Lots, Meters, Garages",Paybyphone,Agency and Third Party Payments related expenditure,02/07/2019,6.83,Director of Children's Services and Education
Business Services,Business Services - Default,Fast Key Services Limi,Supplies and Services related expenditure,02/07/2019,3.56,"Director of Housing, Neighbourhood and Building Services"
Auto/Vehicle Rentals,Motor Home/Rv Rentals,Southsea Leisure Park,Agency and Third Party Payments related expenditure,02/07/2019,866.67,Director of Children's Services and Education
Auto/Vehicle Rentals,Motor Home/Rv Rentals,Southsea Leisure Park,Agency and Third Party Payments related expenditure,02/07/2019,303.33,Director of Children's Services and Education
Auto/Vehicle Rentals,Motor Home/Rv Rentals,Southsea Leisure Park,Agency and Third Party Payments related expenditure,02/07/2019,866.67,Director of Children's Services and Education
Auto/Vehicle Rentals,Motor Home/Rv Rentals,Southsea Leisure Park,Agency and Third Party Payments related expenditure,02/07/2019,303.33,Director of Children's Services and Education
Auto/Vehicle Rentals,Motor Home/Rv Rentals,Southsea Leisure Park,Agency and Third Party Payments related expenditure,02/07/2019,216.67,Director of Children's Services and Education
Other Supplies,Gift/Card/Novelty And Souvenir Stores,Hampshire Cultural Tru,Supplies and Services related expenditure,02/07/2019,19.17,Director of Children's Services and Education
Other Supplies,Misc Speciality Retail,Amznmktplace,Supplies and Services related expenditure,02/07/2019,24.99,Director of Portsmouth International Port
Entertainment,Bands/Orchestras/Entertain,Pyramids Centre,Agency and Third Party Payments related expenditure,02/07/2019,2.63,Director of Children's Services and Education
Entertainment,Bands/Orchestras/Entertain,Pyramids Centre,Agency and Third Party Payments related expenditure,02/07/2019,2.63,Director of Children's Services and Education
Retail,Grocery Stores/Supermarkets,Wm Morrisons Store,Supplies and Services related expenditure,02/07/2019,12.31,Director of Children's Services and Education
Miscellaneous,Fines,Combined Court Cen,Supplies and Services related expenditure,02/07/2019,50,Director of Children's Services and Education
Miscellaneous,Veterinary Service,Sanctuary Vets - Farli,Supplies and Services related expenditure,02/07/2019,105.48,"Director of Culture, Leisure & Regulatory Services"
Retail,Grocery Stores/Supermarkets,Fruit Basket Ltd,Supplies and Services related expenditure,02/07/2019,213.61,"Director of Culture, Leisure & Regulatory Services"
Facilities/Repair Supplies,Lumber/Build. Supply Stores,B & Q 1260,Supplies and Services related expenditure,02/07/2019,9.8,"Director of Housing, Neighbourhood and Building Services"
Business To Business Facility/,Industrial Supplies - Def,Arco Ltd,Supplies and Services related expenditure,02/07/2019,25.17,"Director of Housing, Neighbourhood and Building Services"
Transportation,"Parking Lots, Meters, Garages",3c_*portsmouth City Co,Transport related expenditure,02/07/2019,10,Director of Children's Services and Education
Retail,Sports/Riding Apparel Store,Shedfield Nursery And Equ,Supplies and Services related expenditure,02/07/2019,11.55,Director of Children's Services and Education
Miscellaneous,Agricultural Co-Operativ,Mole Country Stores,Supplies and Services related expenditure,02/07/2019,16.79,Director of Children's Services and Education
Retail,Grocery Stores/Supermarkets,Lidl Gb Portsmouth,Supplies and Services related expenditure,02/07/2019,12.28,Director of Children's Services and Education
Equipment And Furniture,Household Appliance Stores,Wilko Retail Limit,Supplies and Services related expenditure,02/07/2019,2.5,"Director of Culture, Leisure & Regulatory Services"
Retail,Candy/Nut/Confection Store,Krispy Kreme Portsmouth G,Supplies and Services related expenditure,02/07/2019,11.2,Director of Children's Services and Education
Transportation,Local Commuter Transport,Wightlink,Transport related expenditure,02/07/2019,15.6,Director of Children's Services and Education
Eating And Drinking Places,Eating Places/Restaurants,Patisserie Valerie,Supplies and Services related expenditure,02/07/2019,73.33,Director of Children's Services and Education
Eating And Drinking Places,Eating Places/Restaurants,Zizzi Portsmouth,Supplies and Services related expenditure,02/07/2019,237.67,Director of Children's Services and Education
Business To Business Eqpt/Furn,Stationery/Office Supplies,Www.Banneruk.Com,Supplies and Services related expenditure,02/07/2019,4.68,Director of Adult Services
Business To Business Eqpt/Furn,Stationery/Office Supplies,Www.Banneruk.Com,Supplies and Services related expenditure,02/07/2019,16.1,Director of Adult Services
Entertainment,Tourist Attractions And Xhbt,Www.Hawk-Conservancytr,Supplies and Services related expenditure,02/07/2019,1.46,Director of Children's Services and Education
Retail,Grocery Stores/Supermarkets,Tesco Store 3048,Supplies and Services related expenditure,02/07/2019,2.75,Director of Children's Services and Education
Retail,Grocery Stores/Supermarkets,Tesco Store 3048,Supplies and Services related expenditure,02/07/2019,3.25,Director of Children's Services and Education
Entertainment,Tourist Attractions And Xhbt,Www.Hawk-Conservancytr,Supplies and Services related expenditure,02/07/2019,9.68,Director of Children's Services and Education
Business Services,Business Services - Default,Fast Key Services Limi,Supplies and Services related expenditure,02/07/2019,6.05,Director of Adult Services
Business To Business Eqpt/Furn,Stationery/Office Supplies,Www.Banneruk.Com,Supplies and Services related expenditure,02/07/2019,18.36,Director of Adult Services
Transportation,Passenger Railways,Trainline,Supplies and Services related expenditure,02/07/2019,235.23,"Director of Housing, Neighbourhood and Building Services"
Miscellaneous,Charitable/Soc Service Orgs,Chartered Institute Of En,Supplies and Services related expenditure,02/07/2019,491.67,"Director of Housing, Neighbourhood and Building Services"
Other Supplies,Misc Speciality Retail,Amazon.Co.Uk,Premises related expenditure,02/07/2019,30,"Director of Housing, Neighbourhood and Building Services"
Medical,Lab/Med/Hospital Equipment,Wightman & Parrish,Premises related expenditure,02/07/2019,63.52,"Director of Housing, Neighbourhood and Building Services"
Business To Business Other Sup,Uniforms & Commercial Clothing,Alexandra Website,Supplies and Services related expenditure,02/07/2019,74.1,"Director of Housing, Neighbourhood and Building Services"
Eating And Drinking Places,Eating Places/Restaurants,The Tenth Hole Tea Roo,Supplies and Services related expenditure,02/07/2019,7.08,Director of Children's Services and Education
Miscellaneous,Charitable/Soc Service Orgs,The Salvation Army,Capital related expenditure,02/07/2019,250,Capital - Housing RA
Facilities/Repair Supplies,Lumber/Build. Supply Stores,B & Q 1260,Supplies and Services related expenditure,02/07/2019,86.6,Director of Regeneration
Miscellaneous,Other Direct Marketers,Amazon.Co.Uk,Supplies and Services related expenditure,02/07/2019,4.83,"Director of Housing, Neighbourhood and Building Services"
Transportation,Passenger Railways,New Southern Railw,Supplies and Services related expenditure,02/07/2019,54.92,Director of Public Health
Auto/Vehicle Dealers,Trailer Camper Dealer,Blenworth Tyres Ltd,Supplies and Services related expenditure,02/07/2019,56.52,"Director of Housing, Neighbourhood and Building Services"
Miscellaneous,Misc Personal Serv - Def,Portsmouth Cultural Trus,Supplies and Services related expenditure,02/07/2019,666,Director of Children's Services and Education
Business To Business Eqpt/Furn,Stationery/Office Supplies,Www.Banneruk.Com,Supplies and Services related expenditure,02/07/2019,46.11,"Director of Culture, Leisure & Regulatory Services"
Miscellaneous,Other Direct Marketers,Amazon.Co.Uk,Supplies and Services related expenditure,02/07/2019,23,Director of Adult Services
Transportation,Passenger Railways,Ticketofficesale - Swtrainsports,Transport related expenditure,02/07/2019,41,Director of Regeneration
Transportation,Passenger Railways,Ticketofficesale - Swtrainsports,Transport related expenditure,02/07/2019,170.8,Capital - Leader
Government,Colleges/Univ/Jc/Profession,Ptrc-Training.Co.U,Employees related expenditure,02/07/2019,298.8,Director of Regeneration
Miscellaneous,Misc Personal Serv - Def,Portsmouth Cultural Trus,Supplies and Services related expenditure,02/07/2019,400,Director of Regeneration
Other Supplies,Misc Speciality Retail,Amznmktplace,Supplies and Services related expenditure,02/07/2019,11.94,Director of Children's Services and Education
Retail,Grocery Stores/Supermarkets,Tesco Store 3055,Supplies and Services related expenditure,02/07/2019,7.32,"Director of Housing, Neighbourhood and Building Services"
Miscellaneous,Misc Personal Serv - Def,Portsmouth Cultural Trus,Supplies and Services related expenditure,02/07/2019,55,"Director of Culture, Leisure & Regulatory Services"
Other Supplies,Misc Speciality Retail,Amznmktplace,Supplies and Services related expenditure,02/07/2019,26.66,"Director of Housing, Neighbourhood and Building Services"
Entertainment,Tourist Attractions And Xhbt,Www.Spinnakertower.Co.,Supplies and Services related expenditure,02/07/2019,230,Director of Children's Services and Education
Entertainment,Member Clubs/Sport/Rec/Golf,Horizon Leisure Trust,Supplies and Services related expenditure,02/07/2019,6.6,Director of Adult Services
Other Supplies,Discount Stores,B&m Retail,Supplies and Services related expenditure,02/07/2019,50.22,"Director of Housing, Neighbourhood and Building Services"
Retail,Shoe Repair/Shine/Hat Clean,Timpson Ltd,Premises related expenditure,02/07/2019,10,Director of Regeneration
Transportation,Passenger Railways,Ticketofficesale - Swtrainsports,Transport related expenditure,02/07/2019,-10.4,Director of Regeneration
Business To Business Eqpt/Furn,Stationery/Office Supplies,Www.Banneruk.Com,Supplies and Services related expenditure,02/07/2019,15.06,Director of Regeneration
Business To Business Eqpt/Furn,Stationery/Office Supplies,Www.Banneruk.Com,Supplies and Services related expenditure,02/07/2019,18.79,Director of Regeneration
Medical,Lab/Med/Hospital Equipment,Wightman & Parrish,Premises related expenditure,02/07/2019,351.98,"Director of Housing, Neighbourhood and Building Services"
Medical,Lab/Med/Hospital Equipment,Incchoice,Supplies and Services related expenditure,02/07/2019,57.88,Director of Adult Services
Retail,Grocery Stores/Supermarkets,Js Online Grocery,Supplies and Services related expenditure,02/07/2019,26.46,Director of Children's Services and Education
Retail,Grocery Stores/Supermarkets,Js Online Grocery,Supplies and Services related expenditure,02/07/2019,68.6,Director of Children's Services and Education
Transportation,Local Commuter Transport,Hovertravel Ltd,Transport related expenditure,02/07/2019,20.17,Director of Public Health
Business Expenses/Services,Stationery Stores,Safe.Co.Uk,Supplies and Services related expenditure,02/07/2019,33.29,Director of Portsmouth International Port
Retail,Grocery Stores/Supermarkets,Asda Superstore,Supplies and Services related expenditure,02/07/2019,8.97,Director of Adult Services
Transportation,Passenger Railways,Trainline.Com,Transport related expenditure,02/07/2019,27.41,"Director of Housing, Neighbourhood and Building Services"
Miscellaneous,Charitable/Soc Service Orgs,The Salvation Army,Capital related expenditure,02/07/2019,310,Capital - Housing RA
Business To Business Eqpt/Furn,Stationery/Office Supplies,Www.Banneruk.Com,Supplies and Services related expenditure,02/07/2019,12.32,"Director of Culture, Leisure & Regulatory Services"
Government,Schools - Default,Nspcc,Supplies and Services related expenditure,02/07/2019,300,Director of Children's Services and Education
Eating And Drinking Places,Eating Places/Restaurants,Coffee Cup,Supplies and Services related expenditure,02/07/2019,6.88,Director of Children's Services and Education
Retail,Grocery Stores/Supermarkets,Wm Morrisons Store,Supplies and Services related expenditure,02/07/2019,0.83,Director of Children's Services and Education
Retail,Grocery Stores/Supermarkets,Wm Morrisons Store,Supplies and Services related expenditure,02/07/2019,9.38,Director of Children's Services and Education
Eating And Drinking Places,Fast Food Restaurants,Costa Coffee 43040140,Supplies and Services related expenditure,02/07/2019,3.71,Director of Children's Services and Education
Other Supplies,Department Stores,Southern Co-Op 0002,Supplies and Services related expenditure,02/07/2019,4.44,Director of Children's Services and Education
Other Supplies,Discount Stores,Www.Argos.Co.Uk,Supplies and Services related expenditure,02/07/2019,19.94,Director of Adult Services
Business To Business Eqpt/Furn,Computer Software Stores,Disability Rights Uk,Supplies and Services related expenditure,02/07/2019,70,Director of Finance & IT
Business To Business Facility/,Industrial Supplies - Def,Www.Arco.Co.Uk,Supplies and Services related expenditure,02/07/2019,78.41,"Director of Housing, Neighbourhood and Building Services"
Government,Govt Serv - Default,Hampshire County Counc,Supplies and Services related expenditure,02/07/2019,7.08,Director of Children's Services and Education
Other Supplies,Misc Speciality Retail,Amznmktplace Amazon.Co.Uk,Supplies and Services related expenditure,02/07/2019,10.82,Director of Children's Services and Education
Retail,Grocery Stores/Supermarkets,Tesco Stores 4611,Supplies and Services related expenditure,02/07/2019,4.38,Director of Children's Services and Education
Government,Govt Serv - Default,Portsmouth City Co,Transport related expenditure,02/07/2019,63.33,Director of Children's Services and Education
Retail,Grocery Stores/Supermarkets,Tesco Stores 4611,Supplies and Services related expenditure,02/07/2019,6.4,Director of Children's Services and Education
Transportation,Passenger Railways,Ticketofficesale - Swtrainsports,Supplies and Services related expenditure,02/07/2019,118.2,Director of Children's Services and Education
Business Expenses/Services,Postage Stamps,Post Office Counter,Supplies and Services related expenditure,02/07/2019,218,Director of Children's Services and Education
Other Supplies,Misc Speciality Retail,Www.Safeoptions.Co.Uk,Supplies and Services related expenditure,02/07/2019,100,"Director of Culture, Leisure & Regulatory Services"
Transportation,"Parking Lots, Meters, Garages",Portsmouth City Co,Transport related expenditure,02/07/2019,10.25,Chief Exec
Retail,Grocery Stores/Supermarkets,Wm Morrisons Store,Supplies and Services related expenditure,02/07/2019,2.5,Director of Children's Services and Education
Retail,Grocery Stores/Supermarkets,Wm Morrisons Store,Supplies and Services related expenditure,02/07/2019,7.35,Director of Children's Services and Education
Retail,Grocery Stores/Supermarkets,Lidl Gb Portsmouth,Supplies and Services related expenditure,02/07/2019,16.35,Director of Children's Services and Education
Retail,Grocery Stores/Supermarkets,Lidl Gb Portsmouth,Supplies and Services related expenditure,02/07/2019,3.33,Director of Children's Services and Education
Retail,Grocery Stores/Supermarkets,Lidl Gb Portsmouth,Premises related expenditure,02/07/2019,3.3,Director of Children's Services and Education
Retail,Grocery Stores/Supermarkets,Lidl Gb Portsmouth,Supplies and Services related expenditure,02/07/2019,3.27,Director of Children's Services and Education
Retail,Grocery Stores/Supermarkets,Asda Groceries Online,Supplies and Services related expenditure,02/07/2019,-5,Director of Children's Services and Education
Retail,Grocery Stores/Supermarkets,Asda Groceries Online,Supplies and Services related expenditure,02/07/2019,40.66,Director of Children's Services and Education
Retail,Grocery Stores/Supermarkets,Tesco Stores 6577,Supplies and Services related expenditure,02/07/2019,5.1,Director of Adult Services
Transportation,"Parking Lots, Meters, Garages",Gunwharf Quays,Transport related expenditure,02/07/2019,16.67,Director of Children's Services and Education
Eating And Drinking Places,Eating Places/Restaurants,Zizzi Portsmouth,Supplies and Services related expenditure,02/07/2019,237.81,Director of Children's Services and Education
Business To Business Facility/,Hardware Equipment/Supplies,Vl Architectural Ironm,Supplies and Services related expenditure,02/07/2019,16,"Director of Housing, Neighbourhood and Building Services"
Facilities/Repair Supplies,Lumber/Build. Supply Stores,City Electrical Fa,Premises related expenditure,02/07/2019,100.55,"Director of Housing, Neighbourhood and Building Services"
Equipment And Furniture,Household Appliance Stores,Wilko Retail Limit,Agency and Third Party Payments related expenditure,02/07/2019,10,Director of Children's Services and Education
Retail,Grocery Stores/Supermarkets,Tesco Store 3048,Supplies and Services related expenditure,02/07/2019,12.49,Director of Children's Services and Education
Other Supplies,Discount Stores,Argos Direct,Supplies and Services related expenditure,02/07/2019,138.95,Director of Children's Services and Education
Transportation,Passenger Railways,Trainline.Com,Transport related expenditure,02/07/2019,79.43,Director of Children's Services and Education
Other Supplies,Department Stores,Southern Co-Op 0043,Supplies and Services related expenditure,02/07/2019,5.78,"Director of Housing, Neighbourhood and Building Services"
Retail,Grocery Stores/Supermarkets,Tesco Stores 6679,Supplies and Services related expenditure,02/07/2019,4.85,Director of Adult Services
Facilities/Repair Supplies,Home Supply Warehouse Stores,Manomanouk,Supplies and Services related expenditure,02/07/2019,149.99,Director of Children's Services and Education
Business To Business Eqpt/Furn,Stationery/Office Supplies,Www.Banneruk.Com,Supplies and Services related expenditure,02/07/2019,43.37,"Director of Housing, Neighbourhood and Building Services"
Retail,Grocery Stores/Supermarkets,Sainsburys S/mkts,Supplies and Services related expenditure,02/07/2019,61.17,Director of Children's Services and Education
Business Expenses/Services,Stationery Stores,Www.Tts-Groups.Co.Uk,Supplies and Services related expenditure,02/07/2019,7.96,Director of Children's Services and Education
Business Expenses/Services,Stationery Stores,Www.Tts-Groups.Co.Uk,Supplies and Services related expenditure,02/07/2019,11.96,Director of Children's Services and Education
Government,Govt Serv - Default,Hampshire County Counc,Supplies and Services related expenditure,02/07/2019,20.82,Director of Children's Services and Education
Other Supplies,Misc Speciality Retail,Amznmktplace,Supplies and Services related expenditure,02/07/2019,9.99,Director of Children's Services and Education
Business Expenses/Services,Quick Copy/Repro Services,Paypal,Supplies and Services related expenditure,02/07/2019,72.96,Director of Children's Services and Education
Business To Business Eqpt/Furn,Computer Software Stores,Sp * Primary Classroom,Supplies and Services related expenditure,02/07/2019,81.5,Director of Children's Services and Education
Retail,Sports/Riding Apparel Store,Www.Brigade.Uk.Com,Supplies and Services related expenditure,02/07/2019,122.45,Director of Children's Services and Education
Retail,Sports/Riding Apparel Store,Www.Brigade.Uk.Com,Supplies and Services related expenditure,02/07/2019,7.04,Director of Children's Services and Education
Government,Govt Serv - Default,Portsmouth City Co,Transport related expenditure,02/07/2019,2.92,Director of Adult Services
Clothing/Shoes/Uniforms,Mens/Womens Clothing Stores,Select,Agency and Third Party Payments related expenditure,02/07/2019,7.99,Director of Children's Services and Education
Retail,Drug Stores & Pharmacies,Boots 1524,Agency and Third Party Payments related expenditure,02/07/2019,20.94,Director of Children's Services and Education
Clothing/Shoes/Uniforms,Mens/Womens Clothing Stores,Top Shop,Agency and Third Party Payments related expenditure,02/07/2019,50.05,Director of Children's Services and Education
Other Supplies,Misc Speciality Retail,Www.Rainbowsafetey.Co.Uk,Premises related expenditure,02/07/2019,5.9,Director of Children's Services and Education
Retail,Fabric Stores,Hampshirefl,Supplies and Services related expenditure,02/07/2019,47.89,"Director of Culture, Leisure & Regulatory Services"
Transportation,Passenger Railways,Trainline.Com,Transport related expenditure,02/07/2019,96.72,"Director of Housing, Neighbourhood and Building Services"
Retail,Grocery Stores/Supermarkets,Asda Groceries Online,Supplies and Services related expenditure,02/07/2019,-0.57,Director of Adult Services
Retail,Grocery Stores/Supermarkets,Asda Groceries Online,Supplies and Services related expenditure,02/07/2019,-26.43,Director of Adult Services
Retail,Grocery Stores/Supermarkets,Asda Groceries Online,Supplies and Services related expenditure,02/07/2019,147.3,Director of Adult Services
Transportation,Passenger Railways,New Southern Railw,Transport related expenditure,02/07/2019,35.3,Director of Children's Services and Education
Business To Business Other Sup,Uniforms & Commercial Clothing,Alexandra Website,Supplies and Services related expenditure,02/07/2019,65.1,"Director of Housing, Neighbourhood and Building Services"
Transportation,Passenger Railways,Trainline.Com,Transport related expenditure,02/07/2019,12.87,Chief Exec
Business To Business Eqpt/Furn,Stationery/Office Supplies,Www.Banneruk.Com,Supplies and Services related expenditure,02/07/2019,21.69,"Director of Culture, Leisure & Regulatory Services"
Medical,Osteopaths,Lbhealthcare,Supplies and Services related expenditure,02/07/2019,20,Director of Adult Services
Facilities/Repair Supplies,Lawn/Garden Supply/Nursery,Carters Of Swanwic,Supplies and Services related expenditure,02/07/2019,80.27,"Director of Housing, Neighbourhood and Building Services"
Facilities/Repair Supplies,Lawn/Garden Supply/Nursery,Carters Of Swanwic,Supplies and Services related expenditure,02/07/2019,98.55,"Director of Housing, Neighbourhood and Building Services"
Other Supplies,Discount Stores,Argos Retail Group,Supplies and Services related expenditure,02/07/2019,24.16,Director of Children's Services and Education
Other Supplies,Discount Stores,Argos Retail Group,Supplies and Services related expenditure,02/07/2019,24.16,Director of Children's Services and Education
Retail,Grocery Stores/Supermarkets,Tesco Stores 4611,Agency and Third Party Payments related expenditure,02/07/2019,2.5,Director of Children's Services and Education
Business Services,Business Services - Default,Www.Pmgltd.Co.Uk,Supplies and Services related expenditure,02/07/2019,99,Director of Regeneration
Business To Business Facility/,Industrial Supplies - Def,Www.Arco.Co.Uk,Supplies and Services related expenditure,02/07/2019,160.94,Director of Regeneration
Business To Business Facility/,Industrial Supplies - Def,Www.Arco.Co.Uk,Supplies and Services related expenditure,02/07/2019,178.62,Director of Regeneration
Auto/Vehicle Expenses,Auto Body Repair Shops,A & J Lawrence Acciden,Transport related expenditure,02/07/2019,-50,Director of Regeneration
Auto/Vehicle Expenses,Auto Body Repair Shops,A & J Lawrence Acciden,Transport related expenditure,02/07/2019,-411.56,Director of Regeneration
Business To Business Eqpt/Furn,Stationery/Office Supplies,Www.Banneruk.Com,Supplies and Services related expenditure,02/07/2019,171.11,Director of Adult Services
Transportation,Passenger Railways,Trainline.Com,Transport related expenditure,02/07/2019,79.43,"Director of Housing, Neighbourhood and Building Services"
Retail,Grocery Stores/Supermarkets,Tesco Store 3055,Supplies and Services related expenditure,02/07/2019,34.74,Director of Children's Services and Education
Retail,Grocery Stores/Supermarkets,Tesco Store 3055,Supplies and Services related expenditure,02/07/2019,15.58,Director of Children's Services and Education
Medical,Lab/Med/Hospital Equipment,Wightman & Parrish,Premises related expenditure,02/07/2019,15.96,"Director of Housing, Neighbourhood and Building Services"
Equipment And Furniture,Household Appliance Stores,Tlc Southern Ltd,Supplies and Services related expenditure,02/07/2019,99.2,"Director of Culture, Leisure & Regulatory Services"
Other Supplies,Misc Speciality Retail,Amznmktplace,Supplies and Services related expenditure,02/07/2019,15.81,Director of Children's Services and Education
Other Supplies,Misc Speciality Retail,Amznmktplace,Supplies and Services related expenditure,02/07/2019,16.35,Director of Children's Services and Education
Other Supplies,Misc Speciality Retail,Amznmktplace,Supplies and Services related expenditure,02/07/2019,42,Director of Children's Services and Education
Retail,Record Shops,Itunes.Com/Bill,Supplies and Services related expenditure,02/07/2019,0.66,"Director of Housing, Neighbourhood and Building Services"
Other Supplies,Misc Speciality Retail,Amznmktplace,Supplies and Services related expenditure,02/07/2019,16.29,"Director of Housing, Neighbourhood and Building Services"
Other Supplies,Misc Speciality Retail,Amznmktplace,Supplies and Services related expenditure,02/07/2019,15.24,"Director of Housing, Neighbourhood and Building Services"
Business To Business Eqpt/Furn,Stationery/Office Supplies,Www.Banneruk.Com,Supplies and Services related expenditure,02/07/2019,13.8,Director of Children's Services and Education
Business To Business Eqpt/Furn,Stationery/Office Supplies,Www.Banneruk.Com,Supplies and Services related expenditure,02/07/2019,7.84,Director of Children's Services and Education
Clothing/Shoes/Uniforms,Mens/Womens Clothing Stores,Matalan,Supplies and Services related expenditure,02/07/2019,16,"Director of Housing, Neighbourhood and Building Services"
Government,Vocational/Trade Schools,Www.Cskills.Org,Supplies and Services related expenditure,02/07/2019,36,"Director of Housing, Neighbourhood and Building Services"
Retail,Misc Food Stores - Default,Hilliers Gardens & Arb,Supplies and Services related expenditure,02/07/2019,70.67,"Director of Housing, Neighbourhood and Building Services"
Auto/Vehicle Rentals,Automobile Rental Agency,Southern Motor Contrac,Transport related expenditure,02/07/2019,85,"Director of Housing, Neighbourhood and Building Services"
Eating And Drinking Places,Fast Food Restaurants,Costa Coffee 43039875,Supplies and Services related expenditure,02/07/2019,7.5,Director of Children's Services and Education
Retail,Grocery Stores/Supermarkets,Sainsburys S/mkts,Supplies and Services related expenditure,02/07/2019,5.17,Director of Children's Services and Education
Retail,Grocery Stores/Supermarkets,Sainsburys S/mkts,Supplies and Services related expenditure,02/07/2019,8.24,Director of Children's Services and Education
Transportation,Passenger Railways,Selfserve Ticket - Swtrainsports,Transport related expenditure,02/07/2019,6.3,Director of Finance & IT
Transportation,Passenger Railways,Ticketofficesale - Swtrainsports,Transport related expenditure,02/07/2019,189.05,Director of Children's Services and Education
Other Supplies,Misc Speciality Retail,Amazon.Co.Uk,Supplies and Services related expenditure,02/07/2019,1,Director of Children's Services and Education
Other Supplies,Misc Speciality Retail,Amazon.Co.Uk,Supplies and Services related expenditure,02/07/2019,5.99,Director of Children's Services and Education
Other Supplies,Misc Speciality Retail,Amznmktplace,Supplies and Services related expenditure,02/07/2019,10.79,Director of Children's Services and Education
Other Supplies,Misc Speciality Retail,Amazon.Co.Uk,Supplies and Services related expenditure,02/07/2019,15.18,Director of Children's Services and Education
Facilities/Repair Supplies,Lawn/Garden Supply/Nursery,Www.Pond-Planet.Co,Premises related expenditure,02/07/2019,29.03,Director of Children's Services and Education
Utilities,Phone Serv/Equip Utility,O2,Supplies and Services related expenditure,02/07/2019,40.37,Director of Children's Services and Education
Facilities/Repair Supplies,Hardware Stores,Rg Warwick Trading,Supplies and Services related expenditure,02/07/2019,52.49,"Director of Culture, Leisure & Regulatory Services"
Business To Business Facility/,Electrical Parts/Equipment,Edmundson Electrical,Supplies and Services related expenditure,02/07/2019,11.78,Director of Adult Services
Retail,Grocery Stores/Supermarkets,Tesco Stores 4579,Supplies and Services related expenditure,02/07/2019,3.29,Director of Children's Services and Education
Retail,Grocery Stores/Supermarkets,Tesco Stores 4579,Supplies and Services related expenditure,02/07/2019,18.56,Director of Children's Services and Education
Transportation,Passenger Railways,Selfserve Ticket - Swtrainsports,Transport related expenditure,02/07/2019,13.1,Director of Adult Services
Business To Business Other Sup,Precious Stones/Metals/Jewelry,Www.Medalsforschools.C,Supplies and Services related expenditure,02/07/2019,247.7,Director of Children's Services and Education
Automobile Services & Supplies,Service Stations,Asda Petrol 4583,Premises related expenditure,02/07/2019,46.6,"Director of Housing, Neighbourhood and Building Services"
Business To Business Eqpt/Furn,Computer Software Stores,Appliancedirect Co,Supplies and Services related expenditure,02/07/2019,174.86,"Director of Housing, Neighbourhood and Building Services"
Entertainment,Bands/Orchestras/Entertain,Bh Live Active - Mount,Supplies and Services related expenditure,02/07/2019,4.65,Director of Adult Services
Entertainment,Bands/Orchestras/Entertain,Bh Live Active - Mount,Supplies and Services related expenditure,02/07/2019,2.13,Director of Adult Services
Retail,Hobby/Toy/Game Stores,Game Retail,Supplies and Services related expenditure,02/07/2019,4.17,Director of Children's Services and Education
Retail,Grocery Stores/Supermarkets,Sainsburys S/mkts,Supplies and Services related expenditure,02/07/2019,5.63,Director of Children's Services and Education
Other Supplies,Misc Speciality Retail,Amazon.Co.Uk,Supplies and Services related expenditure,02/07/2019,7.1,Director of Children's Services and Education
Other Supplies,Misc Speciality Retail,Amznmktplace,Supplies and Services related expenditure,02/07/2019,31.97,Director of Children's Services and Education
Retail,Grocery Stores/Supermarkets,Tesco Store 3048,Supplies and Services related expenditure,02/07/2019,9.05,Director of Children's Services and Education
Other Supplies,Misc Speciality Retail,Amznmktplace,Supplies and Services related expenditure,02/07/2019,9.48,Director of Children's Services and Education
Transportation,Passenger Railways,Ticketofficesale - Swtrainsports,Transport related expenditure,02/07/2019,46,Director of Finance & IT
Transportation,Passenger Railways,Ticketofficesale - Swtrainsports,Transport related expenditure,02/07/2019,136.4,Director of Finance & IT
Business To Business Facility/,Electrical Parts/Equipment,Rs Components,Premises related expenditure,02/07/2019,132.72,Director of Portsmouth International Port
Business To Business Services,Metal Service Centers,Metal Supermarkets - S,Premises related expenditure,02/07/2019,759.64,Director of Portsmouth International Port
Business To Business Services,Metal Service Centers,Metal Supermarkets - S,Premises related expenditure,02/07/2019,-911.79,Director of Portsmouth International Port
Retail,Grocery Stores/Supermarkets,Asda Stores,Supplies and Services related expenditure,02/07/2019,0.85,"Director of Culture, Leisure & Regulatory Services"
Retail,Grocery Stores/Supermarkets,Asda Stores,Supplies and Services related expenditure,02/07/2019,5.42,"Director of Culture, Leisure & Regulatory Services"
Retail,Artist/Craft Shops,Hobbycraft,Supplies and Services related expenditure,02/07/2019,54.17,"Director of Culture, Leisure & Regulatory Services"
Retail,Grocery Stores/Supermarkets,Asda Stores,Supplies and Services related expenditure,02/07/2019,71.83,"Director of Culture, Leisure & Regulatory Services"
Other Supplies,Misc Speciality Retail,Amznmktplace,Supplies and Services related expenditure,02/07/2019,8.33,"Director of Culture, Leisure & Regulatory Services"
Government,Govt Serv - Default,Pcc Moto Payment,Supplies and Services related expenditure,02/07/2019,21,"Director of Culture, Leisure & Regulatory Services"
Business To Business Facility/,Industrial Supplies - Def,Www.Arco.Co.Uk,Supplies and Services related expenditure,02/07/2019,15.94,"Director of Housing, Neighbourhood and Building Services"
Business To Business Facility/,Industrial Supplies - Def,Www.Arco.Co.Uk,Supplies and Services related expenditure,02/07/2019,20.48,"Director of Housing, Neighbourhood and Building Services"
Facilities/Repair Supplies,Lawn/Garden Supply/Nursery,Carters Of Swanwic,Supplies and Services related expenditure,02/07/2019,22,"Director of Housing, Neighbourhood and Building Services"
Facilities/Repair Supplies,Lawn/Garden Supply/Nursery,Carters Of Swanwic,Supplies and Services related expenditure,02/07/2019,111.52,"Director of Housing, Neighbourhood and Building Services"
Retail,Misc Food Stores - Default,Gosport Health Foods,Supplies and Services related expenditure,02/07/2019,6.37,Director of Adult Services
Transportation,"Parking Lots, Meters, Garages",Portsmouth City Co,Supplies and Services related expenditure,02/07/2019,2.2,Director of Regeneration
Caterers Food,Caterers,Medirest Costa,Supplies and Services related expenditure,02/07/2019,5.83,Director of Children's Services and Education
Business Services,Photo Studios,Hospediahospitaltv,Supplies and Services related expenditure,02/07/2019,29.08,Director of Children's Services and Education
Facilities/Repair Supplies,Lumber/Build. Supply Stores,B & Q 1260,Premises related expenditure,02/07/2019,8.03,Director of Children's Services and Education
Transportation,Passenger Railways,Www.Southwesttrains.Co,Transport related expenditure,02/07/2019,42.8,Director of Finance & IT
Business Expenses/Services,Stationery Stores,Www.Tts-Groups.Co.Uk,Supplies and Services related expenditure,02/07/2019,79.95,Director of Children's Services and Education
Business To Business Facility/,Hardware Equipment/Supplies,Cardeasolut,Premises related expenditure,02/07/2019,85.35,Director of Children's Services and Education
Other Supplies,Misc Speciality Retail,Amznmktplace,Supplies and Services related expenditure,02/07/2019,10.15,Director of Corporate Services
Other Supplies,Misc Speciality Retail,Amznmktplace,Supplies and Services related expenditure,02/07/2019,16.38,Director of Corporate Services
Automobile Services & Supplies,Service Stations,Shell Fratton 178,Transport related expenditure,02/07/2019,12.74,Director of Children's Services and Education
Airlines,Airlines And Air Carriers,Flybe.Com Sd6o9d,Transport related expenditure,02/07/2019,342.47,Director of Children's Services and Education
Transportation,"Parking Lots, Meters, Garages",Sl-Bibncppof-Ddmm,Transport related expenditure,02/07/2019,3.33,Director of Children's Services and Education
Other Supplies,Misc Speciality Retail,Amazon.Co.Uk,Premises related expenditure,02/07/2019,17.49,Director of Children's Services and Education
Business To Business Other Sup,Uniforms & Commercial Clothing,Arco Ltd,Supplies and Services related expenditure,02/07/2019,14.92,"Director of Housing, Neighbourhood and Building Services"
Professional Services,Professional Services - Def,Paypal,Supplies and Services related expenditure,02/07/2019,131,Director of Children's Services and Education
Business To Business Facility/,Electrical Parts/Equipment,Rs Components,Supplies and Services related expenditure,02/07/2019,23.11,"Director of Culture, Leisure & Regulatory Services"
Hotels And Motels,Lodging/Hotels/Motels/Resorts,Britannia,Supplies and Services related expenditure,02/07/2019,35.42,Director of Children's Services and Education
Other Supplies,Misc Speciality Retail,Amazon.Co.Uk,Supplies and Services related expenditure,02/07/2019,15.18,Director of Children's Services and Education
Other Supplies,Misc Speciality Retail,Amazon.Co.Uk,Supplies and Services related expenditure,02/07/2019,15.71,Director of Children's Services and Education
Hotels And Motels,Premier Travel Inns,Premier Inn44524125,Supplies and Services related expenditure,02/07/2019,91.25,Director of Regeneration
Other Supplies,Misc Speciality Retail,Amznmktplace Amazon.Co.Uk,Supplies and Services related expenditure,02/07/2019,16.38,Director of Corporate Services
Retail,Grocery Stores/Supermarkets,Asda Groceries Online,Supplies and Services related expenditure,03/07/2019,5,Director of Children's Services and Education
Hotels And Motels,Lodging/Hotels/Motels/Resorts,Hotel On Booking.Com St M,Supplies and Services related expenditure,03/07/2019,64.46,Director of Children's Services and Education
Transportation,Bus Lines/Charter/Tour,First Bus - Mobile,Transport related expenditure,03/07/2019,18,Director of Corporate Services
Transportation,Passenger Railways,Selfserve Ticket - Swtrainsports,Transport related expenditure,03/07/2019,11.2,"Director of Housing, Neighbourhood and Building Services"
Transportation,Passenger Railways,Trainline.Com,Transport related expenditure,03/07/2019,12.15,"Director of Housing, Neighbourhood and Building Services"
Hotels And Motels,Travelodge,Travelodge Gb0000,Agency and Third Party Payments related expenditure,03/07/2019,820.96,"Director of Housing, Neighbourhood and Building Services"
Hotels And Motels,Travelodge,Travelodge Gb0000,Agency and Third Party Payments related expenditure,03/07/2019,73.5,"Director of Housing, Neighbourhood and Building Services"
Hotels And Motels,Travelodge,Travelodge Gb0000,Agency and Third Party Payments related expenditure,03/07/2019,1038.67,"Director of Housing, Neighbourhood and Building Services"
Hotels And Motels,Travelodge,Travelodge Gb0000,Agency and Third Party Payments related expenditure,03/07/2019,78.75,"Director of Housing, Neighbourhood and Building Services"
Business Services,Business Services - Default,Www.Planningportal.Co.,Supplies and Services related expenditure,03/07/2019,96,Director of Regeneration
Business Services,Business Services - Default,Www.Planningportal.Co.,Supplies and Services related expenditure,03/07/2019,16.67,Director of Regeneration
Retail,Grocery Stores/Supermarkets,Sainsburys S/mkts,Supplies and Services related expenditure,03/07/2019,13,Director of Children's Services and Education
Caterers Food,Caterers,Sumup *dominos Pizza,Supplies and Services related expenditure,03/07/2019,37.98,Director of Children's Services and Education
Retail,Grocery Stores/Supermarkets,Tesco Store 3048,Supplies and Services related expenditure,03/07/2019,40,Director of Children's Services and Education
Transportation,Passenger Railways,Trainline,Supplies and Services related expenditure,03/07/2019,68.49,Director of Children's Services and Education
Government,Vocational/Trade Schools,Www.Cskills.Org,Supplies and Services related expenditure,03/07/2019,30,Director of Regeneration
Government,Vocational/Trade Schools,Www.Cskills.Org,Supplies and Services related expenditure,03/07/2019,30,Director of Regeneration
Other Supplies,Department Stores,Southern Co-Op 0021,Supplies and Services related expenditure,03/07/2019,0.99,Director of Children's Services and Education
Retail,Grocery Stores/Supermarkets,Co-Op Group 070639,Supplies and Services related expenditure,03/07/2019,1.5,Director of Children's Services and Education
Retail,Grocery Stores/Supermarkets,Co-Op Group 070639,Supplies and Services related expenditure,03/07/2019,1.7,Director of Children's Services and Education
Entertainment,Billiard/Pool Establishment,Craneswater Club,Supplies and Services related expenditure,03/07/2019,6.8,Director of Children's Services and Education
Eating And Drinking Places,Eating Places/Restaurants,Coffee Cup,Supplies and Services related expenditure,03/07/2019,6.46,Director of Children's Services and Education
Government,Govt Serv - Default,Lbbarnet Payenet,Supplies and Services related expenditure,03/07/2019,22,Director of Children's Services and Education
Caterers Food,Caterers,Bookerecomm,Supplies and Services related expenditure,03/07/2019,268.36,"Director of Housing, Neighbourhood and Building Services"
Caterers Food,Caterers,Bookerecomm,Supplies and Services related expenditure,03/07/2019,32.67,"Director of Housing, Neighbourhood and Building Services"
Other Supplies,Misc Speciality Retail,Discount Displays Ltd,Supplies and Services related expenditure,03/07/2019,130.61,Director of Portsmouth International Port
Facilities Maintenance,Clean/Maint/Janitoral Serv,Suez Recycling&recover,Premises related expenditure,03/07/2019,292.87,Director of Regeneration
Transportation,"Parking Lots, Meters, Garages",Ringoparkbyphone,Transport related expenditure,03/07/2019,4.9,Solent LEP
Transportation,Passenger Railways,Lul Ticket Machine,Transport related expenditure,03/07/2019,15,Solent LEP
Transportation,Passenger Railways,Ticketofficesale - Swtrains Fare,Transport related expenditure,03/07/2019,42.8,Solent LEP
Government,Govt Serv - Default,Gen Register Office,Supplies and Services related expenditure,03/07/2019,38,Director of Children's Services and Education
Other Supplies,Discount Stores,Argos Ltd,Supplies and Services related expenditure,03/07/2019,42.49,Director of Children's Services and Education
Transportation,Boat Rentals & Leases,Solent Cruises,Supplies and Services related expenditure,03/07/2019,297,Director of Children's Services and Education
Facilities/Repair Supplies,Lumber/Build. Supply Stores,B & Q 1260,Supplies and Services related expenditure,03/07/2019,21.91,"Director of Housing, Neighbourhood and Building Services"
Facilities/Repair Supplies,Lawn/Garden Supply/Nursery,Tudor Environmental,Supplies and Services related expenditure,03/07/2019,195.25,"Director of Culture, Leisure & Regulatory Services"
Other Supplies,Misc Speciality Retail,Rigby Taylor Limited,Supplies and Services related expenditure,03/07/2019,401,"Director of Culture, Leisure & Regulatory Services"
Transportation,Passenger Railways,Www.Southwesttrains.Co,Supplies and Services related expenditure,03/07/2019,76.4,Director of Corporate Services
Transportation,Passenger Railways,Ticketofficesale - Swtrainsports,Transport related expenditure,03/07/2019,25.1,"Director of Culture, Leisure & Regulatory Services"
Retail,Grocery Stores/Supermarkets,Tesco Store 3055,Supplies and Services related expenditure,03/07/2019,7.9,Director of Adult Services
Facilities/Repair Supplies,Hardware Stores,Robert Dyas Holdng Ltd,Supplies and Services related expenditure,03/07/2019,9.16,Director of Children's Services and Education
Equipment And Furniture,Household Appliance Stores,Wilko Retail Limit,Supplies and Services related expenditure,03/07/2019,99.63,Director of Children's Services and Education
Miscellaneous,Elementary/Secondary School,Paypal,Supplies and Services related expenditure,03/07/2019,19.99,Director of Children's Services and Education
Business To Business Eqpt/Furn,Stationery/Office Supplies,Www.Banneruk.Com,Supplies and Services related expenditure,03/07/2019,3.94,Director of Adult Services
Business To Business Eqpt/Furn,Stationery/Office Supplies,Www.Banneruk.Com,Supplies and Services related expenditure,03/07/2019,8.22,Director of Adult Services
Business To Business Eqpt/Furn,Stationery/Office Supplies,Www.Banneruk.Com,Supplies and Services related expenditure,03/07/2019,20.91,Director of Adult Services
Other Supplies,Misc Speciality Retail,Amznmktplace,Supplies and Services related expenditure,03/07/2019,6.42,"Director of Housing, Neighbourhood and Building Services"
Other Supplies,Discount Stores,B&m Retail,Supplies and Services related expenditure,03/07/2019,3.33,Director of Adult Services
Other Supplies,Discount Stores,B&m Retail,Premises related expenditure,03/07/2019,7.29,Director of Adult Services
Retail,Grocery Stores/Supermarkets,Sainsburys S/mkt,Premises related expenditure,03/07/2019,10.83,Director of Adult Services
Facilities/Repair Supplies,Lawn/Garden Supply/Nursery,Carters Of Swanwic,Supplies and Services related expenditure,03/07/2019,36.48,"Director of Housing, Neighbourhood and Building Services"
Facilities/Repair Supplies,Lawn/Garden Supply/Nursery,Carters Of Swanwic,Supplies and Services related expenditure,03/07/2019,124.82,"Director of Housing, Neighbourhood and Building Services"
Facilities/Repair Supplies,Lawn/Garden Supply/Nursery,Merry Mower Services Lt,Supplies and Services related expenditure,03/07/2019,169.39,"Director of Housing, Neighbourhood and Building Services"
Facilities/Repair Supplies,Lawn/Garden Supply/Nursery,Merry Mower Services Lt,Supplies and Services related expenditure,03/07/2019,287.93,"Director of Housing, Neighbourhood and Building Services"
Retail,Grocery Stores/Supermarkets,Tesco Stores 4579,Supplies and Services related expenditure,03/07/2019,30.34,Director of Children's Services and Education
Retail,Grocery Stores/Supermarkets,Tesco Stores 4579,Supplies and Services related expenditure,03/07/2019,1.67,Director of Children's Services and Education
Retail,Grocery Stores/Supermarkets,Tesco Stores 4579,Premises related expenditure,03/07/2019,35.6,Director of Children's Services and Education
Miscellaneous,Other Direct Marketers,Amazon.Co.Uk,Supplies and Services related expenditure,03/07/2019,21.55,"Director of Housing, Neighbourhood and Building Services"
Other Supplies,Misc Speciality Retail,Amznmktplace Amazon.Co.Uk,Transport related expenditure,03/07/2019,54.13,"Director of Housing, Neighbourhood and Building Services"
Other Supplies,Misc Speciality Retail,Amznmktplace,Transport related expenditure,03/07/2019,3.13,Director of Adult Services
Other Supplies,Misc Speciality Retail,Amznmktplace Amazon.Co.Uk,Supplies and Services related expenditure,03/07/2019,16.83,"Director of Housing, Neighbourhood and Building Services"
Facilities/Repair Services,Spec Contractors - Default,Christie Intruder Alar,Supplies and Services related expenditure,03/07/2019,7.5,"Director of Culture, Leisure & Regulatory Services"
Transportation,Passenger Railways,Ticketofficesale - Swtrainsports,Transport related expenditure,03/07/2019,6.3,Director of Regeneration
Transportation,Passenger Railways,Ticketofficesale - Swtrainsports,Transport related expenditure,03/07/2019,13.7,Director of Regeneration
Transportation,Passenger Railways,Ticketofficesale - Swtrainsports,Transport related expenditure,03/07/2019,31.9,Director of Regeneration
Transportation,Passenger Railways,Ticketofficesale - Swtrainsports,Transport related expenditure,03/07/2019,40.5,Director of Regeneration
Transportation,Passenger Railways,Trainline.Com,Transport related expenditure,03/07/2019,64.38,Director of Children's Services and Education
Miscellaneous,Other Direct Marketers,Amazon.Co.Uk,Supplies and Services related expenditure,03/07/2019,18.64,Director of Children's Services and Education
Transportation,Passenger Railways,Trainline,Transport related expenditure,03/07/2019,29.25,Director of Children's Services and Education
Retail,Grocery Stores/Supermarkets,Sainsburys S/mkts,Supplies and Services related expenditure,03/07/2019,13.38,"Director of Culture, Leisure & Regulatory Services"
Other Supplies,Department Stores,Southern Co-Op 0008,Supplies and Services related expenditure,03/07/2019,2.25,Director of Children's Services and Education
Other Supplies,Department Stores,Southern Co-Op 0008,Supplies and Services related expenditure,03/07/2019,10.14,Director of Children's Services and Education
Business To Business Eqpt/Furn,Stationery/Office Supplies,Www.Banneruk.Com,Supplies and Services related expenditure,03/07/2019,5.03,Director of Regeneration
Transportation,Passenger Railways,Ticketofficesale - Swtrainsports,Transport related expenditure,03/07/2019,92.85,Director of Regeneration
Business To Business Eqpt/Furn,Stationery/Office Supplies,Www.Banneruk.Com,Supplies and Services related expenditure,03/07/2019,81.7,Director of Regeneration
Business To Business Eqpt/Furn,Stationery/Office Supplies,Www.Banneruk.Com,Supplies and Services related expenditure,03/07/2019,62.98,Director of Regeneration
Business To Business Eqpt/Furn,Stationery/Office Supplies,Www.Banneruk.Com,Supplies and Services related expenditure,03/07/2019,27.23,Director of Regeneration
Business To Business Eqpt/Furn,Stationery/Office Supplies,Www.Banneruk.Com,Supplies and Services related expenditure,03/07/2019,20.03,"Director of Housing, Neighbourhood and Building Services"
Government,Govt Serv - Default,Havant Brgh Council,Premises related expenditure,03/07/2019,45,"Director of Housing, Neighbourhood and Building Services"
Business To Business Eqpt/Furn,Stationery/Office Supplies,Www.Banneruk.Com,Supplies and Services related expenditure,03/07/2019,258.64,"Director of Housing, Neighbourhood and Building Services"
Medical,Lab/Med/Hospital Equipment,Wightman & Parrish,Premises related expenditure,03/07/2019,394.39,"Director of Housing, Neighbourhood and Building Services"
Miscellaneous,Continuity/Subscription Mercht,Amazon Prime,Supplies and Services related expenditure,03/07/2019,-7.99,"Director of Culture, Leisure & Regulatory Services"
Business To Business Services,Misc Publishing & Printing,"Signs, Design & Print",Supplies and Services related expenditure,03/07/2019,300,Director of Corporate Services
Medical,Lab/Med/Hospital Equipment,Wightman & Parrish,Supplies and Services related expenditure,03/07/2019,16.9,Director of Adult Services
Medical,Lab/Med/Hospital Equipment,Wightman & Parrish,Supplies and Services related expenditure,03/07/2019,24,Director of Adult Services
Medical,Lab/Med/Hospital Equipment,Wightman & Parrish,Supplies and Services related expenditure,03/07/2019,34.49,Director of Adult Services
Medical,Lab/Med/Hospital Equipment,Wightman & Parrish,Supplies and Services related expenditure,03/07/2019,13.43,Director of Adult Services
Medical,Lab/Med/Hospital Equipment,Wightman & Parrish,Premises related expenditure,03/07/2019,53.08,Director of Adult Services
Transportation,Passenger Railways,Ticketofficesale - Swtrainsports,Transport related expenditure,03/07/2019,18,"Director of Housing, Neighbourhood and Building Services"
Hotels And Motels,Travelodge,Travelodge Gb0000,Agency and Third Party Payments related expenditure,03/07/2019,294,"Director of Housing, Neighbourhood and Building Services"
Hotels And Motels,Travelodge,Travelodge Gb0000,Agency and Third Party Payments related expenditure,03/07/2019,2130,"Director of Housing, Neighbourhood and Building Services"
Retail,Grocery Stores/Supermarkets,Www.Iceland.Co.Uk,Supplies and Services related expenditure,03/07/2019,138.75,Director of Adult Services
Business To Business Facility/,Electrical Parts/Equipment,Edmundson Electrical,Premises related expenditure,03/07/2019,12.51,Director of Portsmouth International Port
Business To Business Facility/,Electrical Parts/Equipment,Edmundson Electrical,Premises related expenditure,03/07/2019,22.5,Director of Portsmouth International Port
Business To Business Facility/,Plumbing/Heating Equipment,Www.Bes.Co.Uk,Premises related expenditure,03/07/2019,170.25,Director of Portsmouth International Port
Business To Business Facility/,Industrial Supplies - Def,Intrico Products Ltd,Premises related expenditure,03/07/2019,333.8,Director of Portsmouth International Port
Retail,Grocery Stores/Supermarkets,Wm Morrisons Store,Supplies and Services related expenditure,03/07/2019,1.83,Director of Children's Services and Education
Other Supplies,Department Stores,Southern Co-Op 0018,Supplies and Services related expenditure,03/07/2019,2.08,Director of Children's Services and Education
Entertainment,Amusement Parks/Circus,Www.Team-Sport.Co.Uk,Supplies and Services related expenditure,03/07/2019,75,Director of Children's Services and Education
Eating And Drinking Places,Fast Food Restaurants,Costa Coffee 43042195,Supplies and Services related expenditure,03/07/2019,3.75,Director of Children's Services and Education
Business To Business Eqpt/Furn,Stationery/Office Supplies,Www.Banneruk.Com,Supplies and Services related expenditure,03/07/2019,8.17,Director of Finance & IT
Business To Business Facility/,Industrial Supplies - Def,Www.Arco.Co.Uk,Supplies and Services related expenditure,03/07/2019,22.29,"Director of Housing, Neighbourhood and Building Services"
Other Supplies,Misc Speciality Retail,Amznmktplace,Premises related expenditure,03/07/2019,30.48,Director of Children's Services and Education
Eating And Drinking Places,Fast Food Restaurants,Www.Pizzahut.Co.Uk,Supplies and Services related expenditure,03/07/2019,65.73,Director of Children's Services and Education
Government,Govt Serv - Default,Hampshire County Counc,Supplies and Services related expenditure,03/07/2019,67,Director of Children's Services and Education
Government,Govt Serv - Default,Portsmouth City Co,Transport related expenditure,03/07/2019,38,Director of Children's Services and Education
Business To Business Eqpt/Furn,Stationery/Office Supplies,Www.Banneruk.Com,Supplies and Services related expenditure,03/07/2019,8.55,Director of Children's Services and Education
Business To Business Eqpt/Furn,Stationery/Office Supplies,Www.Banneruk.Com,Supplies and Services related expenditure,03/07/2019,25.11,Director of Children's Services and Education
Transportation,Passenger Railways,Www.Southwesttrains.Co,Transport related expenditure,03/07/2019,57.7,Director of Children's Services and Education
Business To Business Eqpt/Furn,Book Stores,Waterstones,Supplies and Services related expenditure,03/07/2019,120,Director of Children's Services and Education
Hotels And Motels,Hotel Ibis,Hotel Ibis,Supplies and Services related expenditure,03/07/2019,63.33,"Director of Culture, Leisure & Regulatory Services"
Transportation,"Parking Lots, Meters, Garages",Portsmouth City Co,Transport related expenditure,03/07/2019,10.25,Chief Exec
Retail,Freezer/Meat Lockers,Tangier Road Butchers,Supplies and Services related expenditure,03/07/2019,5.99,Director of Children's Services and Education
Other Supplies,Department Stores,Southern Co-Op 0008,Supplies and Services related expenditure,03/07/2019,8.01,Director of Children's Services and Education
Other Supplies,Discount Stores,B&m Retail,Supplies and Services related expenditure,03/07/2019,10,Director of Children's Services and Education
Other Supplies,Discount Stores,B&m Retail,Supplies and Services related expenditure,03/07/2019,3,Director of Children's Services and Education
Other Supplies,Discount Stores,B&m Retail,Supplies and Services related expenditure,03/07/2019,14.99,Director of Children's Services and Education
Transportation,"Parking Lots, Meters, Garages",Portsmouth City Co,Transport related expenditure,03/07/2019,1.6,Director of Adult Services
Transportation,"Parking Lots, Meters, Garages",Portsmouth City Co,Transport related expenditure,03/07/2019,0.33,Director of Adult Services
Other Supplies,Department Stores,Southern Co-Op 0214,Supplies and Services related expenditure,03/07/2019,4.75,Director of Children's Services and Education
Retail,Grocery Stores/Supermarkets,Aldi Stores Ltd,Supplies and Services related expenditure,03/07/2019,8.23,Director of Adult Services
Transportation,"Parking Lots, Meters, Garages",Parking Services,Transport related expenditure,03/07/2019,2.63,Director of Children's Services and Education
Business To Business Eqpt/Furn,Stationery/Office Supplies,Www.Banneruk.Com,Supplies and Services related expenditure,03/07/2019,33.8,"Director of Culture, Leisure & Regulatory Services"
Business To Business Eqpt/Furn,Stationery/Office Supplies,Www.Banneruk.Com,Supplies and Services related expenditure,03/07/2019,80.28,"Director of Culture, Leisure & Regulatory Services"
Eating And Drinking Places,Eating Places/Restaurants,Coffee Cup,Supplies and Services related expenditure,03/07/2019,4.17,Director of Children's Services and Education
Eating And Drinking Places,Eating Places/Restaurants,Subway,Supplies and Services related expenditure,03/07/2019,4.92,Director of Children's Services and Education
Eating And Drinking Places,Eating Places/Restaurants,Subway,Supplies and Services related expenditure,03/07/2019,6.26,Director of Children's Services and Education
Retail,Grocery Stores/Supermarkets,Tesco Store 3186,Supplies and Services related expenditure,03/07/2019,2.75,Director of Children's Services and Education
Equipment And Furniture,Household Appliance Stores,Battery Station,Supplies and Services related expenditure,03/07/2019,78.62,Director of Children's Services and Education
Other Supplies,Combination Catalog & Retail,Whsmith.Co.Uk,Supplies and Services related expenditure,03/07/2019,243.99,Director of Children's Services and Education
Other Supplies,Combination Catalog & Retail,Whsmith.Co.Uk,Supplies and Services related expenditure,03/07/2019,388.99,Director of Children's Services and Education
Other Supplies,Misc Speciality Retail,Amznmktplace,Supplies and Services related expenditure,03/07/2019,38.97,Director of Children's Services and Education
Other Supplies,Misc Speciality Retail,Amznmktplace,Supplies and Services related expenditure,03/07/2019,38.95,Director of Children's Services and Education
Entertainment,Motion Picture Theatres,Vue Bsl Ltd,Supplies and Services related expenditure,03/07/2019,275.98,Director of Children's Services and Education
Business To Business Other Sup,Uniforms & Commercial Clothing,Arco Ltd,Supplies and Services related expenditure,03/07/2019,70.3,"Director of Housing, Neighbourhood and Building Services"
Other Supplies,Gift/Card/Novelty And Souvenir Stores,Southsea Gallery,Supplies and Services related expenditure,03/07/2019,120,"Director of Housing, Neighbourhood and Building Services"
Business To Business Eqpt/Furn,Computer Software Stores,Sp * 4tronix,Supplies and Services related expenditure,03/07/2019,37,Director of Children's Services and Education
Other Supplies,Misc Speciality Retail,Amznmktplace,Supplies and Services related expenditure,03/07/2019,299.83,Director of Children's Services and Education
Miscellaneous,Other Direct Marketers,Amazon.Co.Uk,Supplies and Services related expenditure,03/07/2019,7.18,Director of Children's Services and Education
Medical,Lab/Med/Hospital Equipment,Wightman & Parrish,Premises related expenditure,03/07/2019,71.14,"Director of Housing, Neighbourhood and Building Services"
Business To Business Eqpt/Furn,Stationery/Office Supplies,Www.Banneruk.Com,Supplies and Services related expenditure,03/07/2019,21.34,"Director of Culture, Leisure & Regulatory Services"
Equipment And Furniture,Household Appliance Stores,Www.Lseretailgroup.Co.,Capital related expenditure,03/07/2019,65.83,Capital - Housing RA
Business To Business Eqpt/Furn,Computer Software Stores,Sp * Sw Wholesale,Supplies and Services related expenditure,03/07/2019,22.95,"Director of Culture, Leisure & Regulatory Services"
Professional Services,Professional Services - Def,Guy & St Thomas Nhs F,Agency and Third Party Payments related expenditure,03/07/2019,342,Director of Public Health
Entertainment,Bands/Orchestras/Entertain,Bh Live Active - Mount,Supplies and Services related expenditure,03/07/2019,2.85,Director of Adult Services
Entertainment,Tourist Attractions And Xhbt,Butser Education Ltd,Supplies and Services related expenditure,03/07/2019,5.83,Director of Children's Services and Education
Retail,Grocery Stores/Supermarkets,Tesco Stores 4611,Supplies and Services related expenditure,03/07/2019,40,Director of Children's Services and Education
Auto/Vehicle Rentals,Automobile Rental Agency,Southern Motor Contrac,Transport related expenditure,03/07/2019,5573.25,Director of Regeneration
Transportation,Passenger Railways,Trainline,Supplies and Services related expenditure,03/07/2019,45.05,Director of Regeneration
Transportation,Passenger Railways,Trainline,Supplies and Services related expenditure,03/07/2019,45.05,Director of Regeneration
Medical,Lab/Med/Hospital Equipment,Wightman & Parrish,Premises related expenditure,03/07/2019,398.15,"Director of Housing, Neighbourhood and Building Services"
Medical,Lab/Med/Hospital Equipment,Wightman & Parrish,Premises related expenditure,03/07/2019,86.8,Director of Adult Services
Medical,Lab/Med/Hospital Equipment,Wightman & Parrish,Supplies and Services related expenditure,03/07/2019,248.35,Director of Adult Services
Medical,Lab/Med/Hospital Equipment,Wightman & Parrish,Supplies and Services related expenditure,03/07/2019,58.15,Director of Adult Services
Facilities/Repair Supplies,Lumber/Build. Supply Stores,Screwfix Portsmouth,Supplies and Services related expenditure,03/07/2019,24.31,"Director of Culture, Leisure & Regulatory Services"
Retail,Electronics Sales,Paypal,Supplies and Services related expenditure,03/07/2019,114,Director of Children's Services and Education
Facilities/Repair Supplies,Lawn/Garden Supply/Nursery,Havant Garden Cent,Supplies and Services related expenditure,03/07/2019,40,"Director of Housing, Neighbourhood and Building Services"
Government,Govt Serv - Default,Hampshire County Counc,Supplies and Services related expenditure,03/07/2019,22,Director of Children's Services and Education
Transportation,Passenger Railways,Trainline,Transport related expenditure,03/07/2019,90.31,Director of Public Health
Transportation,Passenger Railways,Selfserve Ticket - Swtrains Soto,Transport related expenditure,03/07/2019,11.9,Chief Exec
Entertainment,Bands/Orchestras/Entertain,Hollywood Bowl,Supplies and Services related expenditure,03/07/2019,8.38,Director of Adult Services
Retail,Grocery Stores/Supermarkets,Sainsburys S/mkts,Supplies and Services related expenditure,03/07/2019,3.6,"Director of Culture, Leisure & Regulatory Services"
Retail,Grocery Stores/Supermarkets,Sainsburys S/mkts,Supplies and Services related expenditure,03/07/2019,1.67,"Director of Culture, Leisure & Regulatory Services"
Business To Business Eqpt/Furn,Stationery/Office Supplies,Www.Banneruk.Com,Supplies and Services related expenditure,03/07/2019,8.17,Director of Children's Services and Education
Business To Business Eqpt/Furn,Stationery/Office Supplies,Www.Banneruk.Com,Supplies and Services related expenditure,03/07/2019,45.43,"Director of Housing, Neighbourhood and Building Services"
Other Supplies,Misc Speciality Retail,Amznmktplace,Supplies and Services related expenditure,03/07/2019,24.56,"Director of Housing, Neighbourhood and Building Services"
Transportation,Taxicabs/Limousines,Andicars,Transport related expenditure,03/07/2019,48,"Director of Housing, Neighbourhood and Building Services"
Transportation,Taxicabs/Limousines,City Wide Taxis,Transport related expenditure,03/07/2019,43.75,"Director of Housing, Neighbourhood and Building Services"
Eating And Drinking Places,Fast Food Restaurants,McDonalds,Supplies and Services related expenditure,03/07/2019,4.23,Director of Children's Services and Education
Government,Govt Serv - Default,Portsmouth City Co,Supplies and Services related expenditure,03/07/2019,10,Director of Children's Services and Education
Retail,Grocery Stores/Supermarkets,Tesco Stores 6577,Supplies and Services related expenditure,03/07/2019,3.5,"Director of Housing, Neighbourhood and Building Services"
Other Supplies,Misc Speciality Retail,Amazon.Co.Uk,Supplies and Services related expenditure,03/07/2019,5.99,Director of Children's Services and Education
Miscellaneous,Other Direct Marketers,Amazon.Co.Uk,Supplies and Services related expenditure,03/07/2019,27.98,Director of Children's Services and Education
Retail,Grocery Stores/Supermarkets,Asda Groceries Online,Supplies and Services related expenditure,03/07/2019,12.67,Director of Children's Services and Education
Retail,Grocery Stores/Supermarkets,Asda Groceries Online,Supplies and Services related expenditure,03/07/2019,41.06,Director of Children's Services and Education
Transportation,Passenger Railways,Selfserve Ticket - Swtrainsports,Transport related expenditure,03/07/2019,76.6,Director of Adult Services
Other Supplies,Misc Speciality Retail,Amznmktplace,Supplies and Services related expenditure,03/07/2019,29.16,Director of Children's Services and Education
Transportation,Local Commuter Transport,Wightlink,Transport related expenditure,03/07/2019,67,Director of Finance & IT
Business To Business Eqpt/Furn,Stationery/Office Supplies,Www.Banneruk.Com,Supplies and Services related expenditure,03/07/2019,35.38,"Director of Housing, Neighbourhood and Building Services"
Entertainment,Bands/Orchestras/Entertain,Bh Live Active - Mount,Supplies and Services related expenditure,03/07/2019,128.7,Director of Adult Services
Other Supplies,Misc Speciality Retail,Amznmktplace Amazon.Co.Uk,Supplies and Services related expenditure,03/07/2019,9.65,Director of Children's Services and Education
Transportation,Passenger Railways,Trainline.Com,Transport related expenditure,03/07/2019,131.11,Director of Children's Services and Education
Transportation,Passenger Railways,Trainline.Com,Transport related expenditure,03/07/2019,196.03,Director of Children's Services and Education
Other Supplies,Misc Speciality Retail,Amznmktplace,Supplies and Services related expenditure,03/07/2019,10.66,Director of Children's Services and Education
Business To Business Eqpt/Furn,Book Stores,Www.Gresham-Books.Co.U,Supplies and Services related expenditure,03/07/2019,29.58,Director of Children's Services and Education
Other Supplies,Misc Speciality Retail,Amznmktplace,Supplies and Services related expenditure,03/07/2019,33.17,Director of Children's Services and Education
Retail,Grocery Stores/Supermarkets,Marks&spencer Plc Sf,Supplies and Services related expenditure,03/07/2019,85.9,Director of Children's Services and Education
Retail,Grocery Stores/Supermarkets,Lidl Gb Portsmouth,Supplies and Services related expenditure,03/07/2019,1.65,Director of Children's Services and Education
Other Supplies,Misc Gen Merchandise - Def,Asher Design & Print L,Supplies and Services related expenditure,03/07/2019,12.5,Director of Children's Services and Education
Other Supplies,Misc Speciality Retail,Amznmktplace,Supplies and Services related expenditure,03/07/2019,43.33,Director of Children's Services and Education
Business To Business Facility/,Electrical Parts/Equipment,Edmundson Electrical,Premises related expenditure,03/07/2019,888.68,Director of Portsmouth International Port
Auto/Vehicle Expenses,Automated Fuel Dispensers,Asda Petrol 4583,Transport related expenditure,03/07/2019,34.88,"Director of Housing, Neighbourhood and Building Services"
Business To Business Eqpt/Furn,Stationery/Office Supplies,Www.Banneruk.Com,Supplies and Services related expenditure,03/07/2019,8.17,"Director of Culture, Leisure & Regulatory Services"
Miscellaneous,Charitable/Soc Service Orgs,British Heart Foundati,Supplies and Services related expenditure,03/07/2019,7.57,Director of Children's Services and Education
Retail,Drug Stores & Pharmacies,Superdrug Stores Plc,Supplies and Services related expenditure,03/07/2019,12.33,Director of Children's Services and Education
Other Supplies,Misc Speciality Retail,Iz *every Cloud Vape Shop,Supplies and Services related expenditure,03/07/2019,24.96,Director of Children's Services and Education
Retail,Grocery Stores/Supermarkets,Asda Stores,Agency and Third Party Payments related expenditure,03/07/2019,20,Director of Children's Services and Education
Retail,Grocery Stores/Supermarkets,Asda Stores,Premises related expenditure,03/07/2019,6.67,Director of Children's Services and Education
Retail,Grocery Stores/Supermarkets,Asda Stores,Supplies and Services related expenditure,03/07/2019,17.18,Director of Children's Services and Education
Retail,Grocery Stores/Supermarkets,Tesco Stores 2494,Supplies and Services related expenditure,03/07/2019,1.95,Director of Adult Services
Business Expenses/Services,Books/Periodicals/Newspapers,Abebooks Gxdzei,Supplies and Services related expenditure,03/07/2019,2.25,Director of Children's Services and Education
Business Expenses/Services,Books/Periodicals/Newspapers,Abebooks Gxdzef,Supplies and Services related expenditure,03/07/2019,2.27,Director of Children's Services and Education
Business Expenses/Services,Books/Periodicals/Newspapers,Abebooks Gxdze9,Supplies and Services related expenditure,03/07/2019,2.29,Director of Children's Services and Education
Business Expenses/Services,Books/Periodicals/Newspapers,Abebooks Gxdzeb,Supplies and Services related expenditure,03/07/2019,2.29,Director of Children's Services and Education
Business Expenses/Services,Books/Periodicals/Newspapers,Abebooks Gxdzey,Supplies and Services related expenditure,03/07/2019,2.79,Director of Children's Services and Education
Business Expenses/Services,Books/Periodicals/Newspapers,Abebooks Gxdzeg,Supplies and Services related expenditure,03/07/2019,2.94,Director of Children's Services and Education
Business Expenses/Services,Books/Periodicals/Newspapers,Abebooks Gxdzeh,Supplies and Services related expenditure,03/07/2019,3.2,Director of Children's Services and Education
Government,Govt Serv - Default,Hampshire County Counc,Supplies and Services related expenditure,03/07/2019,3.35,Director of Children's Services and Education
Business Expenses/Services,Books/Periodicals/Newspapers,Abebooks Gxdzec,Supplies and Services related expenditure,03/07/2019,4.38,Director of Children's Services and Education
Business Expenses/Services,Books/Periodicals/Newspapers,Abebooks Gxdzea,Supplies and Services related expenditure,03/07/2019,5.92,Director of Children's Services and Education
Business Expenses/Services,Books/Periodicals/Newspapers,Abebooks Gxdzed,Supplies and Services related expenditure,03/07/2019,13.5,Director of Children's Services and Education
Miscellaneous,Other Direct Marketers,Amazon.Co.Uk,Supplies and Services related expenditure,03/07/2019,41.63,Director of Children's Services and Education
Miscellaneous,Other Direct Marketers,Amazon.Co.Uk,Supplies and Services related expenditure,03/07/2019,41.63,Director of Children's Services and Education
Business Expenses/Services,Books/Periodicals/Newspapers,Www.Badgerlearning.Co.,Supplies and Services related expenditure,03/07/2019,149,Director of Children's Services and Education
Equipment And Furniture,Equip/Furn Rent/Lease Serv,Confined Spaces Tr,Premises related expenditure,02/07/2019,623,Director of Portsmouth International Port
Retail,Grocery Stores/Supermarkets,Tesco Store 3055,Supplies and Services related expenditure,03/07/2019,103.78,Director of Children's Services and Education
Retail,Grocery Stores/Supermarkets,Tesco Store 3055,Supplies and Services related expenditure,03/07/2019,133.55,Director of Children's Services and Education
Government,Govt Serv - Default,Gen Register Office,Supplies and Services related expenditure,03/07/2019,-31.5,Director of Children's Services and Education
Hotels And Motels,Lodging/Hotels/Motels/Resorts,Holiday Inn Bristo,Supplies and Services related expenditure,03/07/2019,117.5,Director of Regeneration
Hotels And Motels,Premier Travel Inns,Premier Inn 44537180,Agency and Third Party Payments related expenditure,03/07/2019,124.17,"Director of Housing, Neighbourhood and Building Services"
Hotels And Motels,Premier Travel Inns,Premier Inn 44537180,Agency and Third Party Payments related expenditure,03/07/2019,309.17,"Director of Housing, Neighbourhood and Building Services"
Medical,Lab/Med/Hospital Equipment,Wightman & Parrish Ltd,Supplies and Services related expenditure,03/07/2019,385.75,"Director of Housing, Neighbourhood and Building Services"
Airlines,Airlines And Air Carriers,Flybe.Com Uxk5lj,Transport related expenditure,03/07/2019,49.98,Director of Children's Services and Education
Airlines,Airlines And Air Carriers,Flybe.Com Uyzclr,Transport related expenditure,03/07/2019,101.76,Director of Children's Services and Education
Professional Services,Computer Program/Sys Design,Dri Claro Software Ltd,Supplies and Services related expenditure,03/07/2019,238.8,Director of Children's Services and Education
Other Supplies,Misc Speciality Retail,Amznmktplace Amazon.Co.Uk,Supplies and Services related expenditure,03/07/2019,39.98,Director of Adult Services
Eating And Drinking Places,Fast Food Restaurants,Kfc-Bedhampton,Supplies and Services related expenditure,03/07/2019,6.16,Director of Children's Services and Education
Other Supplies,Misc Speciality Retail,Amznmktplace Amazon.Co.Uk,Supplies and Services related expenditure,04/07/2019,12.08,"Director of Housing, Neighbourhood and Building Services"
Government,Govt Serv - Default,Portsmouth City Co,Transport related expenditure,04/07/2019,63.33,Director of Children's Services and Education
Retail,Grocery Stores/Supermarkets,Wm Morrisons Store,Supplies and Services related expenditure,04/07/2019,3.08,Director of Children's Services and Education
Medical,Lab/Med/Hospital Equipment,Wightman & Parrish,Premises related expenditure,04/07/2019,57.1,"Director of Housing, Neighbourhood and Building Services"
Hotels And Motels,Lodging/Hotels/Motels/Resorts,Linden Guest House,Agency and Third Party Payments related expenditure,04/07/2019,1516.67,"Director of Housing, Neighbourhood and Building Services"
Hotels And Motels,Travelodge,Travelodge Gb0000,Agency and Third Party Payments related expenditure,04/07/2019,2103.46,"Director of Housing, Neighbourhood and Building Services"
Hotels And Motels,Travelodge,Travelodge Gb0000,Agency and Third Party Payments related expenditure,04/07/2019,441,"Director of Housing, Neighbourhood and Building Services"
Transportation,"Parking Lots, Meters, Garages",Paybyphone,Agency and Third Party Payments related expenditure,04/07/2019,6.83,Director of Children's Services and Education
Transportation,"Parking Lots, Meters, Garages",Chichester District Counc,Supplies and Services related expenditure,04/07/2019,1.33,Director of Children's Services and Education
Transportation,"Parking Lots, Meters, Garages",Havant Borough Council,Supplies and Services related expenditure,04/07/2019,1.58,Director of Children's Services and Education
Retail,Bakeries,Splits,Supplies and Services related expenditure,04/07/2019,4.5,Director of Children's Services and Education
Retail,Grocery Stores/Supermarkets,Tesco Stores,Supplies and Services related expenditure,04/07/2019,6.58,Director of Children's Services and Education
Retail,Grocery Stores/Supermarkets,Tesco Stores,Supplies and Services related expenditure,04/07/2019,2,Director of Children's Services and Education
Eating And Drinking Places,Fast Food Restaurants,Subway,Supplies and Services related expenditure,04/07/2019,7.2,"Director of Housing, Neighbourhood and Building Services"
Retail,Grocery Stores/Supermarkets,Lidl Gb Portsmouth,Supplies and Services related expenditure,04/07/2019,4.87,Director of Adult Services
Equipment And Furniture,Household Appliance Stores,Wilko Retail Limit,Supplies and Services related expenditure,04/07/2019,2.5,Director of Children's Services and Education
Transportation,Bus Lines/Charter/Tour,The Provincial Bus,Transport related expenditure,04/07/2019,126,Director of Children's Services and Education
Retail,Sporting Goods Stores,Sportsdirect 219,Supplies and Services related expenditure,04/07/2019,218,Director of Children's Services and Education
Business Expenses/Services,Stationery Stores,Www.Primaryteaching.Co,Supplies and Services related expenditure,04/07/2019,10.15,Director of Children's Services and Education
Transportation,"Parking Lots, Meters, Garages",Kirklees Council,Supplies and Services related expenditure,04/07/2019,1.67,Director of Children's Services and Education
Retail,Misc Food Stores - Default,Starbucks Weston On Green,Supplies and Services related expenditure,04/07/2019,4.83,Director of Children's Services and Education
Retail,Grocery Stores/Supermarkets,Tesco Stores 4579,Supplies and Services related expenditure,04/07/2019,2.5,Director of Children's Services and Education
Retail,Grocery Stores/Supermarkets,Tesco Stores 4579,Supplies and Services related expenditure,04/07/2019,10.99,Director of Children's Services and Education
Retail,Grocery Stores/Supermarkets,Tesco Stores 4579,Supplies and Services related expenditure,04/07/2019,16.67,Director of Children's Services and Education
Retail,Grocery Stores/Supermarkets,Tesco Stores 4579,Supplies and Services related expenditure,04/07/2019,2.5,Director of Children's Services and Education
Miscellaneous,Auto Associations,Aa B2b,Transport related expenditure,04/07/2019,193.33,Director of Children's Services and Education
Facilities/Repair Supplies,Lawn/Garden Supply/Nursery,Fargro Ltd,Supplies and Services related expenditure,04/07/2019,514.8,"Director of Culture, Leisure & Regulatory Services"
Business To Business Eqpt/Furn,Stationery/Office Supplies,Www.Banneruk.Com,Supplies and Services related expenditure,04/07/2019,20.25,Director of Corporate Services
Transportation,"Parking Lots, Meters, Garages",3c_*portsmouth City Co,Transport related expenditure,04/07/2019,2.17,Director of Children's Services and Education
Transportation,Taxicabs/Limousines,Uber Trip Help.Uber.Com,Supplies and Services related expenditure,04/07/2019,10.54,Director of Corporate Services
Government,Govt Serv - Default,Www.Ico.Org.Uk,Supplies and Services related expenditure,04/07/2019,40,"Director of Culture, Leisure & Regulatory Services"
Retail,Grocery Stores/Supermarkets,Tesco Store 3055,Supplies and Services related expenditure,04/07/2019,1.75,Director of Adult Services
Retail,Grocery Stores/Supermarkets,Tesco Store 3055,Supplies and Services related expenditure,04/07/2019,11,Director of Adult Services
Miscellaneous,Other Direct Marketers,Amazon.Co.Uk,Supplies and Services related expenditure,04/07/2019,60,Director of Children's Services and Education
Equipment And Furniture,Phone Serv/Equip Non-Util,O2 Uk,Supplies and Services related expenditure,04/07/2019,10,Director of Children's Services and Education
Business Expenses/Services,News Dealers/Newsstands,Wh Smith,Supplies and Services related expenditure,04/07/2019,3.33,"Director of Culture, Leisure & Regulatory Services"
Other Supplies,Misc Speciality Retail,Amznmktplace,Supplies and Services related expenditure,04/07/2019,10.99,Director of Children's Services and Education
Facilities/Repair Supplies,Home Supply Warehouse Stores,Manomanouk,Supplies and Services related expenditure,04/07/2019,-148.32,Director of Children's Services and Education
Miscellaneous,Other Direct Marketers,Amazon.Co.Uk,Supplies and Services related expenditure,04/07/2019,64.96,Director of Regeneration
Retail,Grocery Stores/Supermarkets,Asda Stores,Supplies and Services related expenditure,04/07/2019,15.87,Director of Adult Services
Transportation,Passenger Railways,Ticketofficesale - Portsmouth,Transport related expenditure,04/07/2019,51.5,"Director of Culture, Leisure & Regulatory Services"
Transportation,Passenger Railways,New Southern Railw,Supplies and Services related expenditure,04/07/2019,31,Director of Public Health
Transportation,"Parking Lots, Meters, Garages",3c_*portsmouth City Co,Supplies and Services related expenditure,04/07/2019,5,Director of Children's Services and Education
Transportation,Local Commuter Transport,Hovertravel Ltd,Supplies and Services related expenditure,04/07/2019,19.36,Director of Children's Services and Education
Business To Business Services,Misc Publishing & Printing,Www.Solopress.Com,Supplies and Services related expenditure,04/07/2019,41,Director of Regeneration
Miscellaneous,Civic/Social/Fraternal Assc,Highstreetvouchers,Supplies and Services related expenditure,04/07/2019,266.67,Director of Children's Services and Education
Miscellaneous,Civic/Social/Fraternal Assc,Highstreetvouchers,Supplies and Services related expenditure,04/07/2019,5.42,Director of Children's Services and Education
Business To Business Eqpt/Furn,Stationery/Office Supplies,Www.Banneruk.Com,Supplies and Services related expenditure,04/07/2019,35.24,Director of Regeneration
Retail,Grocery Stores/Supermarkets,Tesco Stores 4579,Supplies and Services related expenditure,04/07/2019,2.92,Director of Adult Services
Entertainment,Bands/Orchestras/Entertain,Hollywood Bowl,Supplies and Services related expenditure,04/07/2019,5.58,Director of Adult Services
Transportation,Passenger Railways,Selfserve Ticket - Swtrainsports,Transport related expenditure,04/07/2019,11.9,Director of Children's Services and Education
Entertainment,Billiard/Pool Establishment,Craneswater Club,Supplies and Services related expenditure,04/07/2019,4.22,Director of Children's Services and Education
Eating And Drinking Places,Fast Food Restaurants,Micks Mobile Catering,Supplies and Services related expenditure,04/07/2019,1.25,Director of Children's Services and Education
Eating And Drinking Places,Fast Food Restaurants,Micks Mobile Catering,Supplies and Services related expenditure,04/07/2019,3.6,Director of Children's Services and Education
Business To Business Eqpt/Furn,Stationery/Office Supplies,Www.Banneruk.Com,Supplies and Services related expenditure,04/07/2019,43.3,"Director of Housing, Neighbourhood and Building Services"
Business To Business Eqpt/Furn,Stationery/Office Supplies,Www.Banneruk.Com,Supplies and Services related expenditure,04/07/2019,60.74,"Director of Housing, Neighbourhood and Building Services"
Eating And Drinking Places,Eating Places/Restaurants,Greggs Plc,Supplies and Services related expenditure,04/07/2019,2.75,Director of Children's Services and Education
Eating And Drinking Places,Fast Food Restaurants,McDonalds,Supplies and Services related expenditure,04/07/2019,11.05,Director of Children's Services and Education
Medical,Lab/Med/Hospital Equipment,Wightman & Parrish,Premises related expenditure,04/07/2019,197.01,"Director of Housing, Neighbourhood and Building Services"
Medical,Lab/Med/Hospital Equipment,Wightman & Parrish,Premises related expenditure,04/07/2019,483.41,"Director of Housing, Neighbourhood and Building Services"
Transportation,"Parking Lots, Meters, Garages",Southampton University,Transport related expenditure,04/07/2019,3.5,Director of Children's Services and Education
Transportation,Passenger Railways,Trainline.Com,Transport related expenditure,04/07/2019,34.53,Director of Children's Services and Education
Transportation,Taxicabs/Limousines,Uber Trip Help.Uber.Com,Supplies and Services related expenditure,04/07/2019,30.76,Director of Portsmouth International Port
Transportation,Taxicabs/Limousines,Uber Trip Help.Uber.Com,Supplies and Services related expenditure,04/07/2019,31.08,Director of Portsmouth International Port
Business To Business Facility/,Industrial Supplies - Def,Www.Arco.Co.Uk,Supplies and Services related expenditure,04/07/2019,340.79,"Director of Housing, Neighbourhood and Building Services"
Business To Business Eqpt/Furn,Stationery/Office Supplies,Www.Banneruk.Com,Supplies and Services related expenditure,04/07/2019,2.98,"Director of Culture, Leisure & Regulatory Services"
Freight/Courier/Warehouse Svcs,Public Warehousing,Big Yellow S S Portsmout,Premises related expenditure,04/07/2019,118.67,"Director of Housing, Neighbourhood and Building Services"
Freight/Courier/Warehouse Svcs,Public Warehousing,Big Yellow S S Portsmout,Premises related expenditure,04/07/2019,101.8,"Director of Housing, Neighbourhood and Building Services"
Hotels And Motels,Travelodge,Travelodge Gb0000,Agency and Third Party Payments related expenditure,04/07/2019,147,"Director of Housing, Neighbourhood and Building Services"
Hotels And Motels,Travelodge,Travelodge Gb0000,Agency and Third Party Payments related expenditure,04/07/2019,1688.33,"Director of Housing, Neighbourhood and Building Services"
Hotels And Motels,Travelodge,Travelodge Gb0000,Agency and Third Party Payments related expenditure,04/07/2019,294,"Director of Housing, Neighbourhood and Building Services"
Hotels And Motels,Travelodge,Travelodge Gb0000,Agency and Third Party Payments related expenditure,04/07/2019,2228.33,"Director of Housing, Neighbourhood and Building Services"
Other Supplies,Misc Speciality Retail,Value Products Ltd,Premises related expenditure,04/07/2019,13.45,Director of Portsmouth International Port
Business To Business Services,Misc Publishing & Printing,Www.Archersigns.Co.Uk,Premises related expenditure,04/07/2019,137.95,Director of Portsmouth International Port
Other Supplies,Misc Speciality Retail,Amznmktplace,Supplies and Services related expenditure,04/07/2019,14.16,Director of Portsmouth International Port
Equipment And Furniture,Equip/Furn Rent/Lease Serv,Afi Uplift,Employees related expenditure,04/07/2019,1570,Director of Portsmouth International Port
Miscellaneous,Other Direct Marketers,Www.Lqm.Co.Uk,Supplies and Services related expenditure,04/07/2019,30,Director of Regeneration
Eating And Drinking Places,Bars/Taverns/Lounges/Discos,Playfootball Ltd,Supplies and Services related expenditure,04/07/2019,4,Director of Children's Services and Education
Retail,Grocery Stores/Supermarkets,Tesco Stores 5153,Supplies and Services related expenditure,04/07/2019,2.08,Director of Children's Services and Education
Retail,Grocery Stores/Supermarkets,Tesco Stores 5153,Supplies and Services related expenditure,04/07/2019,1.9,Director of Children's Services and Education
Entertainment,Member Clubs/Sport/Rec/Golf,Roko Portsmouth Limite,Supplies and Services related expenditure,04/07/2019,6.15,Director of Children's Services and Education
Government,Govt Serv - Default,Portsmouth Council,Agency and Third Party Payments related expenditure,04/07/2019,11,"Director of Culture, Leisure & Regulatory Services"
Business To Business Facility/,Industrial Supplies - Def,Hyphose Ltd,Supplies and Services related expenditure,04/07/2019,122.71,"Director of Housing, Neighbourhood and Building Services"
Other Supplies,Misc Speciality Retail,Amznmktplace,Supplies and Services related expenditure,04/07/2019,5.99,Director of Children's Services and Education
Other Supplies,Misc Speciality Retail,Amznmktplace,Supplies and Services related expenditure,04/07/2019,12.95,Director of Children's Services and Education
Other Supplies,Misc Speciality Retail,Amznmktplace,Premises related expenditure,04/07/2019,28.6,Director of Children's Services and Education
Miscellaneous,Fines,Combined Court Cen,Supplies and Services related expenditure,04/07/2019,545,"Director of Housing, Neighbourhood and Building Services"
Miscellaneous,Continuity/Subscription Mercht,Mailchimp,Supplies and Services related expenditure,04/07/2019,40.04,"Director of Culture, Leisure & Regulatory Services"
Business To Business Eqpt/Furn,Computer Software Stores,Appliancedirect Co,Supplies and Services related expenditure,04/07/2019,278.53,"Director of Culture, Leisure & Regulatory Services"
Transportation,"Parking Lots, Meters, Garages",Portsmouth City Co,Transport related expenditure,04/07/2019,10.25,Chief Exec
Retail,Grocery Stores/Supermarkets,Wm Morrisons Store,Supplies and Services related expenditure,04/07/2019,3.33,Director of Children's Services and Education
Retail,Grocery Stores/Supermarkets,Wm Morrisons Store,Supplies and Services related expenditure,04/07/2019,19.7,Director of Children's Services and Education
Facilities/Repair Supplies,Drapery & Upholstery Stores,Fabricland,Supplies and Services related expenditure,04/07/2019,16.34,Director of Children's Services and Education
Retail,Grocery Stores/Supermarkets,Asda Groceries Online,Supplies and Services related expenditure,04/07/2019,29.03,Director of Children's Services and Education
Business To Business Facility/,Industrial Supplies - Def,Www.Arco.Co.Uk,Supplies and Services related expenditure,04/07/2019,48.66,"Director of Housing, Neighbourhood and Building Services"
Professional Services,Mgmt/Consult/Public Rel Ser,Ninumbers.Com,Employees related expenditure,04/07/2019,88.8,"Director of Housing, Neighbourhood and Building Services"
Other Supplies,Misc Speciality Retail,Amznmktplace,Supplies and Services related expenditure,04/07/2019,39.16,Director of Children's Services and Education
Eating And Drinking Places,Eating Places/Restaurants,Greggs Plc,Supplies and Services related expenditure,04/07/2019,2.75,Director of Children's Services and Education
Eating And Drinking Places,Eating Places/Restaurants,Greggs Plc,Supplies and Services related expenditure,04/07/2019,2.85,Director of Children's Services and Education
Business To Business Eqpt/Furn,Book Stores,Room 237,Supplies and Services related expenditure,04/07/2019,13.16,Director of Children's Services and Education
Transportation,Local Commuter Transport,Hovertravel Ltd,Transport related expenditure,04/07/2019,16.13,Director of Children's Services and Education
Retail,Grocery Stores/Supermarkets,Wm Morrisons Store,Supplies and Services related expenditure,04/07/2019,3.13,Director of Children's Services and Education
Retail,Grocery Stores/Supermarkets,Asda Stores,Supplies and Services related expenditure,04/07/2019,26.74,"Director of Housing, Neighbourhood and Building Services"
Other Supplies,Catalog Merchant,College Of Occup T,Employees related expenditure,04/07/2019,14,Director of Adult Services
Medical,Nursing/Personal Care Fac,Su-Med International (Uk,Supplies and Services related expenditure,04/07/2019,172.5,Director of Adult Services
Miscellaneous,Other Direct Marketers,Amazon.Co.Uk,Supplies and Services related expenditure,04/07/2019,19.28,Director of Children's Services and Education
Other Supplies,Misc Speciality Retail,Amznmktplace,Supplies and Services related expenditure,04/07/2019,10.83,Director of Children's Services and Education
Other Supplies,Misc Speciality Retail,Amazon.Co.Uk,Supplies and Services related expenditure,04/07/2019,47.87,Director of Children's Services and Education
Business To Business Eqpt/Furn,Stationery/Office Supplies,Www.Banneruk.Com,Supplies and Services related expenditure,04/07/2019,5.48,"Director of Housing, Neighbourhood and Building Services"
Other Supplies,Misc Speciality Retail,Amznmktplace,Supplies and Services related expenditure,04/07/2019,7.63,Director of Regeneration
Retail,Grocery Stores/Supermarkets,Tesco Stores 4579,Supplies and Services related expenditure,04/07/2019,15.88,Director of Adult Services
Miscellaneous,Other Direct Marketers,Amazon.Co.Uk,Supplies and Services related expenditure,04/07/2019,26.23,Director of Children's Services and Education
Retail,Grocery Stores/Supermarkets,Lidl Gb Portsmouth,Supplies and Services related expenditure,04/07/2019,10.27,Director of Children's Services and Education
Government,Govt Serv - Default,Pcc Moto Payment,Supplies and Services related expenditure,04/07/2019,11,Director of Children's Services and Education
Government,Govt Serv - Default,Pcc Moto Payment,Supplies and Services related expenditure,04/07/2019,11,Director of Children's Services and Education
Other Supplies,Wholesale Clubs,Makro Self Service Fareha,Supplies and Services related expenditure,04/07/2019,118.38,Director of Children's Services and Education
Other Supplies,Wholesale Clubs,Makro Self Service Fareha,Supplies and Services related expenditure,04/07/2019,50.16,Director of Children's Services and Education
Retail,Hobby/Toy/Game Stores,Smyths Toys Fareham,Premises related expenditure,04/07/2019,184.93,Director of Children's Services and Education
Business To Business Eqpt/Furn,Stationery/Office Supplies,Www.Banneruk.Com,Supplies and Services related expenditure,04/07/2019,173.65,Director of Corporate Services
Facilities/Repair Supplies,Hardware Stores,Toolstation Ltd,Supplies and Services related expenditure,04/07/2019,13.94,Director of Adult Services
Facilities/Repair Supplies,Hardware Stores,Toolstation Ltd,Supplies and Services related expenditure,04/07/2019,23.49,Director of Adult Services
Retail,Grocery Stores/Supermarkets,Tesco Stores 4579,Supplies and Services related expenditure,04/07/2019,4.28,Director of Children's Services and Education
Retail,Grocery Stores/Supermarkets,Asda Groceries Online,Supplies and Services related expenditure,04/07/2019,5,Director of Children's Services and Education
Business Expenses/Services,Postage Stamps,Post Office Counter,Supplies and Services related expenditure,04/07/2019,128.64,Director of Children's Services and Education
Business To Business Eqpt/Furn,Stationery/Office Supplies,Www.Banneruk.Com,Supplies and Services related expenditure,04/07/2019,12.54,"Director of Housing, Neighbourhood and Building Services"
Clothing/Shoes/Uniforms,Shoe Stores,Timpson,Supplies and Services related expenditure,04/07/2019,13.17,"Director of Housing, Neighbourhood and Building Services"
Transportation,"Parking Lots, Meters, Garages",Winchester City Council,Transport related expenditure,04/07/2019,3.5,Chief Exec
Business To Business Eqpt/Furn,Stationery/Office Supplies,Www.Banneruk.Com,Supplies and Services related expenditure,04/07/2019,12.51,"Director of Culture, Leisure & Regulatory Services"
Medical,Lab/Med/Hospital Equipment,Wightman & Parrish Ltd,Premises related expenditure,04/07/2019,91.44,"Director of Housing, Neighbourhood and Building Services"
Business To Business Eqpt/Furn,Stationery/Office Supplies,Www.Banneruk.Com,Supplies and Services related expenditure,04/07/2019,198.9,"Director of Culture, Leisure & Regulatory Services"
Medical,Osteopaths,Lbhealthcare,Supplies and Services related expenditure,04/07/2019,20,Director of Adult Services
Other Supplies,Discount Stores,Argos Ltd,Supplies and Services related expenditure,04/07/2019,16.67,Director of Children's Services and Education
Government,Govt Serv - Default,Pcc Moto Payment,Supplies and Services related expenditure,04/07/2019,22,Director of Children's Services and Education
Retail,Grocery Stores/Supermarkets,Tesco Stores 4579,Supplies and Services related expenditure,04/07/2019,22.5,Director of Children's Services and Education
Retail,Grocery Stores/Supermarkets,Tesco Stores 2322,Supplies and Services related expenditure,04/07/2019,10,Director of Children's Services and Education
Government,Govt Serv - Default,Pcc Moto Payment,Supplies and Services related expenditure,04/07/2019,44,Director of Children's Services and Education
Transportation,Bus Lines/Charter/Tour,Stagecoach South,Agency and Third Party Payments related expenditure,04/07/2019,58,Director of Children's Services and Education
Facilities/Repair Supplies,Lumber/Build. Supply Stores,Screwfix Portsmouth,Premises related expenditure,04/07/2019,71.48,"Director of Culture, Leisure & Regulatory Services"
Transportation,Passenger Railways,Selfserve Ticket - Swtrainsports,Transport related expenditure,04/07/2019,37.9,Capital - Traffic & Transportation
Transportation,Passenger Railways,Selfserve Ticket - Swtrains Fare,Transport related expenditure,04/07/2019,7.2,"Director of Culture, Leisure & Regulatory Services"
Business To Business Eqpt/Furn,Stationery/Office Supplies,Www.Banneruk.Com,Supplies and Services related expenditure,04/07/2019,10.6,Director of Adult Services
Business To Business Eqpt/Furn,Stationery/Office Supplies,Www.Banneruk.Com,Supplies and Services related expenditure,04/07/2019,38.19,Director of Adult Services
Retail,Grocery Stores/Supermarkets,Www.Iceland.Co.Uk,Supplies and Services related expenditure,04/07/2019,99.75,Director of Adult Services
Retail,Grocery Stores/Supermarkets,Www.Iceland.Co.Uk,Supplies and Services related expenditure,04/07/2019,69.88,Director of Adult Services
Government,Govt Serv - Default,Portsmouth City Co,Transport related expenditure,04/07/2019,10,Director of Children's Services and Education
Business To Business Eqpt/Furn,Stationery/Office Supplies,Www.Banneruk.Com,Supplies and Services related expenditure,04/07/2019,62.63,Director of Adult Services
Government,Govt Serv - Default,Havant Brgh Council,Supplies and Services related expenditure,04/07/2019,158.33,"Director of Housing, Neighbourhood and Building Services"
Other Supplies,Misc Speciality Retail,Amznmktplace,Supplies and Services related expenditure,04/07/2019,11.24,Director of Children's Services and Education
Retail,Artist/Craft Shops,Activitytoysdirect,Supplies and Services related expenditure,04/07/2019,124.17,Director of Children's Services and Education
Transportation,Passenger Railways,Ticketofficesale - Swtrainsports,Transport related expenditure,04/07/2019,4.3,Director of Adult Services
Transportation,Passenger Railways,Ticketofficesale - Swtrainsports,Transport related expenditure,04/07/2019,13.1,Director of Corporate Services
Transportation,Passenger Railways,Ticketofficesale - Swtrainsports,Transport related expenditure,04/07/2019,98.5,Director of Corporate Services
Transportation,Passenger Railways,Selfserve Ticket - Swtrains Soto,Transport related expenditure,04/07/2019,12,Chief Exec
Transportation,Passenger Railways,Trainline.Com,Supplies and Services related expenditure,04/07/2019,34.33,Director of Adult Services
Retail,Electronics Sales,Currys Online,Supplies and Services related expenditure,04/07/2019,90.83,"Director of Housing, Neighbourhood and Building Services"
Other Supplies,Misc Speciality Retail,Amznmktplace,Supplies and Services related expenditure,04/07/2019,19.47,Director of Children's Services and Education
Other Supplies,Misc Speciality Retail,Amznmktplace,Supplies and Services related expenditure,04/07/2019,25.1,Director of Children's Services and Education
Other Supplies,Misc Speciality Retail,Amznmktplace,Supplies and Services related expenditure,04/07/2019,10.99,Director of Children's Services and Education
Retail,Record Shops,Itunes.Com/Bill,Supplies and Services related expenditure,04/07/2019,0.66,"Director of Housing, Neighbourhood and Building Services"
Retail,Record Shops,Itunes.Com/Bill,Supplies and Services related expenditure,04/07/2019,0.66,"Director of Housing, Neighbourhood and Building Services"
Retail,Record Shops,Itunes.Com/Bill,Supplies and Services related expenditure,04/07/2019,0.66,"Director of Housing, Neighbourhood and Building Services"
Retail,Record Shops,Itunes.Com/Bill,Supplies and Services related expenditure,04/07/2019,0.66,"Director of Housing, Neighbourhood and Building Services"
Eating And Drinking Places,Eating Places/Restaurants,Greggs Plc,Supplies and Services related expenditure,04/07/2019,2.25,Director of Children's Services and Education
Eating And Drinking Places,Fast Food Restaurants,Costa Coffee 43042195,Supplies and Services related expenditure,04/07/2019,3.45,Director of Children's Services and Education
Miscellaneous,Charitable/Soc Service Orgs,Peterfield Open Air Sw,Supplies and Services related expenditure,04/07/2019,6,Director of Children's Services and Education
Eating And Drinking Places,Fast Food Restaurants,Micks Mobile Catering,Supplies and Services related expenditure,04/07/2019,2,Director of Children's Services and Education
Eating And Drinking Places,Fast Food Restaurants,Micks Mobile Catering,Supplies and Services related expenditure,04/07/2019,7,Director of Children's Services and Education
Other Supplies,Discount Stores,Argos Ltd,Supplies and Services related expenditure,04/07/2019,3.33,"Director of Housing, Neighbourhood and Building Services"
Miscellaneous,Other Direct Marketers,Amazon.Co.Uk,Supplies and Services related expenditure,04/07/2019,41.59,Director of Children's Services and Education
Automobile Services & Supplies,Service Stations,Sainsburys Petrol,Supplies and Services related expenditure,04/07/2019,20.08,"Director of Culture, Leisure & Regulatory Services"
Facilities/Repair Supplies,Lumber/Build. Supply Stores,B & Q 1260,Supplies and Services related expenditure,04/07/2019,54.84,Director of Adult Services
Equipment And Furniture,Household Appliance Stores,Tlc Southern Ltd,Premises related expenditure,04/07/2019,191.7,"Director of Culture, Leisure & Regulatory Services"
Transportation,Passenger Railways,Stagecoach Sw Trains L,Supplies and Services related expenditure,04/07/2019,48.8,Director of Portsmouth International Port
Other Supplies,Misc Speciality Retail,Amznmktplace,Supplies and Services related expenditure,04/07/2019,1.58,Director of Children's Services and Education
Other Supplies,Gift/Card/Novelty And Souvenir Stores,Www.Trophystore.Co.Uk,Supplies and Services related expenditure,04/07/2019,6.91,Director of Children's Services and Education
Other Supplies,Misc Speciality Retail,Amznmktplace,Supplies and Services related expenditure,04/07/2019,9.57,Director of Children's Services and Education
Other Supplies,Misc Speciality Retail,Amznmktplace,Supplies and Services related expenditure,04/07/2019,14.99,Director of Children's Services and Education
Transportation,Local Commuter Transport,Www.Gosportferry.Co.Uk,Supplies and Services related expenditure,04/07/2019,-38.08,Director of Children's Services and Education
Government,Govt Serv - Default,Hampshire County Counc,Premises related expenditure,04/07/2019,52.8,Director of Children's Services and Education
Government,Govt Serv - Default,Hampshire County Counc,Premises related expenditure,04/07/2019,7.31,Director of Children's Services and Education
Government,Govt Serv - Default,Land Registry,Supplies and Services related expenditure,04/07/2019,6,"Director of Culture, Leisure & Regulatory Services"
Business Expenses/Services,News Dealers/Newsstands,Wh Smith,Supplies and Services related expenditure,04/07/2019,29.99,"Director of Culture, Leisure & Regulatory Services"
Facilities/Repair Supplies,Lumber/Build. Supply Stores,The Wilky Group,Supplies and Services related expenditure,04/07/2019,75,Capital - Solent LEP
Miscellaneous,Continuity/Subscription Mercht,Grants Online,Supplies and Services related expenditure,04/07/2019,20,"Director of Housing, Neighbourhood and Building Services"
Retail,Grocery Stores/Supermarkets,Wm Morrisons Store,Supplies and Services related expenditure,04/07/2019,1.85,Director of Adult Services
Retail,Grocery Stores/Supermarkets,Tesco Stores 4579,Supplies and Services related expenditure,04/07/2019,54.4,Director of Children's Services and Education
Transportation,Passenger Railways,Trainline,Transport related expenditure,04/07/2019,131.11,Director of Children's Services and Education
Other Supplies,Misc Speciality Retail,Amznmktplace,Supplies and Services related expenditure,04/07/2019,27.5,Director of Children's Services and Education
Business To Business Eqpt/Furn,Stationery/Office Supplies,Www.Banneruk.Com,Supplies and Services related expenditure,04/07/2019,20.12,Director of Corporate Services
Business To Business Eqpt/Furn,Stationery/Office Supplies,Www.Banneruk.Com,Supplies and Services related expenditure,04/07/2019,44.29,Director of Corporate Services
Transportation,Passenger Railways,Trainline.Com,Supplies and Services related expenditure,04/07/2019,17.64,Director of Children's Services and Education
Business To Business Facility/,Electrical Parts/Equipment,Westwood Meters And Ti,Premises related expenditure,04/07/2019,146,Director of Portsmouth International Port
Equipment And Furniture,Household Appliance Stores,Wilko Retail Limit,Supplies and Services related expenditure,04/07/2019,35.04,Director of Children's Services and Education
Eating And Drinking Places,Fast Food Restaurants,Subway,Supplies and Services related expenditure,04/07/2019,7.08,"Director of Housing, Neighbourhood and Building Services"
Transportation,"Parking Lots, Meters, Garages",The Nec,Transport related expenditure,04/07/2019,13.33,"Director of Housing, Neighbourhood and Building Services"
Medical,Lab/Med/Hospital Equipment,Safety Buyer UK Limited,Supplies and Services related expenditure,04/07/2019,33.45,"Director of Culture, Leisure & Regulatory Services"
Medical,Lab/Med/Hospital Equipment,Wightman & Parrish Ltd,Premises related expenditure,04/07/2019,110.29,"Director of Housing, Neighbourhood and Building Services"
Other Supplies,Misc Speciality Retail,Www.Nortthernarbsuppli,Supplies and Services related expenditure,04/07/2019,130.52,"Director of Housing, Neighbourhood and Building Services"
Medical,Lab/Med/Hospital Equipment,Wightman & Parrish Ltd,Premises related expenditure,04/07/2019,165.02,"Director of Housing, Neighbourhood and Building Services"
Miscellaneous,Other Direct Marketers,Amazon.Co.Uk,Supplies and Services related expenditure,04/07/2019,11.44,Director of Children's Services and Education
Miscellaneous,Other Direct Marketers,Amazon.Co.Uk,Supplies and Services related expenditure,04/07/2019,11.44,Director of Children's Services and Education
Miscellaneous,Other Direct Marketers,Amazon.Co.Uk,Supplies and Services related expenditure,04/07/2019,88.55,Director of Children's Services and Education
Facilities/Repair Services,Gen Contractors Residentl/Coml,The Internet S Lt M/Vt,Premises related expenditure,04/07/2019,274.43,Director of Children's Services and Education
Eating And Drinking Places,Fast Food Restaurants,McDonalds,Agency and Third Party Payments related expenditure,04/07/2019,11.13,Director of Children's Services and Education
Hotels And Motels,Premier Travel Inns,Premier Inn44024365,Agency and Third Party Payments related expenditure,04/07/2019,686.25,"Director of Housing, Neighbourhood and Building Services"
Hotels And Motels,Premier Travel Inns,Premier Inn44024365,Agency and Third Party Payments related expenditure,04/07/2019,765.83,"Director of Housing, Neighbourhood and Building Services"
Clothing/Shoes/Uniforms,Family Clothing Stores,Primark,Supplies and Services related expenditure,04/07/2019,17.92,Director of Children's Services and Education
Other Supplies,Misc Speciality Retail,Amazon.Co.Uk,Supplies and Services related expenditure,04/07/2019,26.67,Director of Children's Services and Education
Other Supplies,Misc Speciality Retail,Amazon.Co.Uk,Supplies and Services related expenditure,04/07/2019,26.67,Director of Children's Services and Education
Hotels And Motels,Premier Travel Inns,Premier Inn44024365,Agency and Third Party Payments related expenditure,04/07/2019,407.5,"Director of Housing, Neighbourhood and Building Services"
Retail,Sporting Goods Stores,Decathlon UK Vad,Supplies and Services related expenditure,04/07/2019,26.88,Director of Children's Services and Education
Automobile Services & Supplies,Service Stations,Park Lane Service Station,Transport related expenditure,04/07/2019,18.05,"Director of Housing, Neighbourhood and Building Services"
Automobile Services & Supplies,Service Stations,Park Lane Service Station,Transport related expenditure,04/07/2019,31.7,"Director of Housing, Neighbourhood and Building Services"
Professional Services,Mgmt/Consult/Public Rel Ser,Tvlicensing.Co.Uk,Supplies and Services related expenditure,04/07/2019,154.5,Director of Regeneration
Transportation,Travel Agencies,Www.Campbeaumont.Co.Uk,Employees related expenditure,04/07/2019,671,Director of Corporate Services
Other Supplies,Misc Speciality Retail,Amazon.Co.Uk,Supplies and Services related expenditure,04/07/2019,9.15,Director of Children's Services and Education
Transportation,Passenger Railways,Ticketofficesale - Swtrainsports,Transport related expenditure,05/07/2019,11.9,Director of Children's Services and Education
Transportation,Passenger Railways,Ticketofficesale - Swtrainsports,Transport related expenditure,05/07/2019,-11.9,Director of Children's Services and Education
Transportation,Passenger Railways,Ticketofficesale - Swtrainsports,Transport related expenditure,05/07/2019,23.8,Director of Children's Services and Education
Other Supplies,Misc Speciality Retail,Amazon.Co.Uk,Supplies and Services related expenditure,05/07/2019,11.98,"Director of Housing, Neighbourhood and Building Services"
Business To Business Eqpt/Furn,Stationery/Office Supplies,Www.Banneruk.Com,Supplies and Services related expenditure,05/07/2019,89.59,"Director of Housing, Neighbourhood and Building Services"
Business Expenses/Services,Postage Stamps,Postoffice Selfservice,Supplies and Services related expenditure,05/07/2019,9.1,"Director of Housing, Neighbourhood and Building Services"
Retail,Grocery Stores/Supermarkets,Asda Groceries Online,Supplies and Services related expenditure,05/07/2019,-1,Director of Children's Services and Education
Retail,Grocery Stores/Supermarkets,Asda Groceries Online,Supplies and Services related expenditure,05/07/2019,97.17,Director of Children's Services and Education
Transportation,Passenger Railways,Selfserve Ticket - Swtrainsports,Transport related expenditure,05/07/2019,48,"Director of Housing, Neighbourhood and Building Services"
Transportation,Passenger Railways,Selfserve Ticket - Swtrainsports,Transport related expenditure,05/07/2019,48,"Director of Housing, Neighbourhood and Building Services"
Freight/Courier/Warehouse Svcs,Public Warehousing,Big Yellow S S Portsmout,Premises related expenditure,05/07/2019,14,"Director of Housing, Neighbourhood and Building Services"
Freight/Courier/Warehouse Svcs,Public Warehousing,Big Yellow S S Portsmout,Premises related expenditure,05/07/2019,67,"Director of Housing, Neighbourhood and Building Services"
Freight/Courier/Warehouse Svcs,Public Warehousing,Big Yellow S S Portsmout,Premises related expenditure,05/07/2019,92,"Director of Housing, Neighbourhood and Building Services"
Freight/Courier/Warehouse Svcs,Public Warehousing,Big Yellow S S Portsmout,Premises related expenditure,05/07/2019,40,"Director of Housing, Neighbourhood and Building Services"
Freight/Courier/Warehouse Svcs,Public Warehousing,Big Yellow S S Portsmout,Premises related expenditure,05/07/2019,116.68,"Director of Housing, Neighbourhood and Building Services"
Freight/Courier/Warehouse Svcs,Public Warehousing,Big Yellow S S Portsmout,Premises related expenditure,05/07/2019,46,"Director of Housing, Neighbourhood and Building Services"
Hotels And Motels,Premier Travel Inns,Premier Inn44529750,Agency and Third Party Payments related expenditure,05/07/2019,347.08,"Director of Housing, Neighbourhood and Building Services"
Hotels And Motels,Travelodge,Travelodge Gb0000,Agency and Third Party Payments related expenditure,05/07/2019,2012.42,"Director of Housing, Neighbourhood and Building Services"
Hotels And Motels,Travelodge,Travelodge Gb0000,Agency and Third Party Payments related expenditure,05/07/2019,147,"Director of Housing, Neighbourhood and Building Services"
Hotels And Motels,Travelodge,Travelodge Gb0000,Agency and Third Party Payments related expenditure,05/07/2019,2246.67,"Director of Housing, Neighbourhood and Building Services"
Hotels And Motels,Travelodge,Travelodge Gb0000,Agency and Third Party Payments related expenditure,05/07/2019,147,"Director of Housing, Neighbourhood and Building Services"
Transportation,"Parking Lots, Meters, Garages",3c_*fareham Borough Coun,Transport related expenditure,05/07/2019,2.5,Director of Public Health
Miscellaneous,Charitable/Soc Service Orgs,Award Scheme Ltd,Supplies and Services related expenditure,05/07/2019,14.5,"Director of Housing, Neighbourhood and Building Services"
Transportation,"Parking Lots, Meters, Garages",Paybyphone,Agency and Third Party Payments related expenditure,05/07/2019,6,Director of Children's Services and Education
Business To Business Facility/,Hardware Equipment/Supplies,Www.Ispitrade.Com,Supplies and Services related expenditure,05/07/2019,108.95,Director of Regeneration
Other Supplies,Misc Speciality Retail,Amznmktplace,Supplies and Services related expenditure,05/07/2019,11,Director of Children's Services and Education
Automobile Services & Supplies,Service Stations,Tesco Pfs 2339,Supplies and Services related expenditure,05/07/2019,1.3,Director of Children's Services and Education
Retail,Grocery Stores/Supermarkets,Fruit Basket Ltd,Supplies and Services related expenditure,05/07/2019,135.51,"Director of Housing, Neighbourhood and Building Services"
Eating And Drinking Places,Fast Food Restaurants,McDonalds,Supplies and Services related expenditure,05/07/2019,4.16,Director of Children's Services and Education
Retail,Grocery Stores/Supermarkets,Lidl Gb Portsmouth,Supplies and Services related expenditure,05/07/2019,0.95,Director of Children's Services and Education
Retail,Grocery Stores/Supermarkets,Tesco Stores 4579,Supplies and Services related expenditure,05/07/2019,2.56,Director of Children's Services and Education
Business To Business Eqpt/Furn,Stationery/Office Supplies,Www.Banneruk.Com,Supplies and Services related expenditure,05/07/2019,32.46,Director of Finance & IT
Business Expenses/Services,Stationery Stores,Ergo2work B.V,Supplies and Services related expenditure,05/07/2019,25.57,Director of Children's Services and Education
Business Expenses/Services,Stationery Stores,Ergo2work B.V,Supplies and Services related expenditure,05/07/2019,8,Director of Children's Services and Education
Miscellaneous,Fines,Hmcourts-Service.G,Agency and Third Party Payments related expenditure,05/07/2019,226,"Director of Culture, Leisure & Regulatory Services"
Retail,Grocery Stores/Supermarkets,Fruit Basket Ltd,Supplies and Services related expenditure,05/07/2019,46.71,"Director of Culture, Leisure & Regulatory Services"
Auto/Vehicle Dealers,Misc Auto Dealers - Default,Www.Agratech.Co.Uk,Supplies and Services related expenditure,05/07/2019,33.55,"Director of Housing, Neighbourhood and Building Services"
Business To Business Eqpt/Furn,Commercial Equipment - Default,L & S Engineers Lt,Supplies and Services related expenditure,05/07/2019,38.45,"Director of Housing, Neighbourhood and Building Services"
Transportation,"Parking Lots, Meters, Garages",3c_*portsmouth City Co,Transport related expenditure,05/07/2019,10,Director of Children's Services and Education
Retail,Grocery Stores/Supermarkets,Aldi Stores Ltd,Supplies and Services related expenditure,05/07/2019,4.32,Director of Adult Services
Retail,Grocery Stores/Supermarkets,Aldi Stores Ltd,Supplies and Services related expenditure,05/07/2019,72.5,Director of Adult Services
Facilities/Repair Supplies,Hardware Stores,Home Bargains,Supplies and Services related expenditure,05/07/2019,13.81,Director of Children's Services and Education
Other Supplies,Discount Stores,Poundland Ltd,Supplies and Services related expenditure,05/07/2019,54.17,Director of Children's Services and Education
Miscellaneous,Civic/Social/Fraternal Assc,Highstreetvouchers,Supplies and Services related expenditure,05/07/2019,100,Director of Children's Services and Education
Eating And Drinking Places,Eating Places/Restaurants,Chutney,Supplies and Services related expenditure,05/07/2019,48.85,Director of Children's Services and Education
Retail,Sports/Riding Apparel Store,Nike Store 00542,Supplies and Services related expenditure,05/07/2019,41.67,Director of Children's Services and Education
Business To Business Eqpt/Furn,Stationery/Office Supplies,Www.Banneruk.Com,Supplies and Services related expenditure,05/07/2019,2.81,Director of Adult Services
Miscellaneous,Charitable/Soc Service Orgs,The Salvation Army,Capital related expenditure,05/07/2019,480,Capital - Housing RA
Auto/Vehicle Expenses,Auto Body Repair Shops,Chips Away,Transport related expenditure,05/07/2019,350,Director of Adult Services
Government,Govt Serv - Default,Portsmouth City Counci,Supplies and Services related expenditure,05/07/2019,3.5,Director of Regeneration
Facilities/Repair Supplies,Lawn/Garden Supply/Nursery,Carters Of Swanwic,Supplies and Services related expenditure,05/07/2019,34,"Director of Housing, Neighbourhood and Building Services"
Automobile Services & Supplies,Service Stations,Park Lane Service Station,Transport related expenditure,05/07/2019,66.73,"Director of Housing, Neighbourhood and Building Services"
Business To Business Facility/,Hardware Equipment/Supplies,Accurate Tool Repair &,Supplies and Services related expenditure,05/07/2019,90,"Director of Housing, Neighbourhood and Building Services"
Facilities/Repair Supplies,Lawn/Garden Supply/Nursery,Carters Of Swanwic,Supplies and Services related expenditure,05/07/2019,34.16,"Director of Housing, Neighbourhood and Building Services"
Facilities/Repair Supplies,Lawn/Garden Supply/Nursery,Carters Of Swanwic,Supplies and Services related expenditure,05/07/2019,34,"Director of Housing, Neighbourhood and Building Services"
Facilities/Repair Supplies,Lawn/Garden Supply/Nursery,Carters Of Swanwic,Supplies and Services related expenditure,05/07/2019,33.75,"Director of Housing, Neighbourhood and Building Services"
Transportation,Passenger Railways,Ticketofficesale - Swtrainsports,Supplies and Services related expenditure,05/07/2019,87.3,Director of Children's Services and Education
Business To Business Facility/,Hardware Equipment/Supplies,Croma Locksmiths & Sec,Supplies and Services related expenditure,05/07/2019,26.83,"Director of Culture, Leisure & Regulatory Services"
Other Supplies,Misc Speciality Retail,Amznmktplace Amazon.Co.Uk,Supplies and Services related expenditure,05/07/2019,19.16,Director of Adult Services
Eating And Drinking Places,Eating Places/Restaurants,Taco Bell,Supplies and Services related expenditure,05/07/2019,14.5,Director of Children's Services and Education
Retail,Grocery Stores/Supermarkets,Wm Morrisons Store,Supplies and Services related expenditure,05/07/2019,3.5,"Director of Housing, Neighbourhood and Building Services"
Retail,Grocery Stores/Supermarkets,Wm Morrisons Store,Supplies and Services related expenditure,05/07/2019,11.17,"Director of Housing, Neighbourhood and Building Services"
Business To Business Eqpt/Furn,Stationery/Office Supplies,Www.Banneruk.Com,Supplies and Services related expenditure,05/07/2019,85.3,Director of Regeneration
Business To Business Eqpt/Furn,Stationery/Office Supplies,Www.Banneruk.Com,Supplies and Services related expenditure,05/07/2019,15.06,Director of Regeneration
Medical,Lab/Med/Hospital Equipment,Wightman & Parrish,Premises related expenditure,05/07/2019,693.56,"Director of Housing, Neighbourhood and Building Services"
Business Expenses/Services,Courier Services,Delivered UK Ltd,Supplies and Services related expenditure,05/07/2019,7.95,Director of Regeneration
Airlines,Airlines And Air Carriers,Flybe.Com Mxndmj,Transport related expenditure,05/07/2019,380.54,"Director of Culture, Leisure & Regulatory Services"
Hotels And Motels,Travelodge,Travelodge Gb0000,Agency and Third Party Payments related expenditure,05/07/2019,302.71,"Director of Housing, Neighbourhood and Building Services"
Hotels And Motels,Premier Travel Inns,Premier Inn 44537180,Agency and Third Party Payments related expenditure,05/07/2019,383.75,"Director of Housing, Neighbourhood and Building Services"
Hotels And Motels,Premier Travel Inns,Premier Inn 44537180,Agency and Third Party Payments related expenditure,05/07/2019,678.75,"Director of Housing, Neighbourhood and Building Services"
Hotels And Motels,Premier Travel Inns,Premier Inn44018425,Agency and Third Party Payments related expenditure,05/07/2019,715.83,"Director of Housing, Neighbourhood and Building Services"
Hotels And Motels,Travelodge,Travelodge Gb0000,Agency and Third Party Payments related expenditure,05/07/2019,147,"Director of Housing, Neighbourhood and Building Services"
Hotels And Motels,Travelodge,Travelodge Gb0000,Agency and Third Party Payments related expenditure,05/07/2019,2246.67,"Director of Housing, Neighbourhood and Building Services"
Retail,Grocery Stores/Supermarkets,Asda Groceries Online,Supplies and Services related expenditure,05/07/2019,56.46,Director of Adult Services
Facilities/Repair Supplies,Lumber/Build. Supply Stores,Screwfix Portsmouth,Premises related expenditure,05/07/2019,17.47,Director of Portsmouth International Port
Facilities/Repair Supplies,Home Supply Warehouse Stores,Screwfix Direct,Premises related expenditure,05/07/2019,72.48,Director of Portsmouth International Port
Entertainment,Amusement/Rec Serv - Def,Splashdown Waterpark,Supplies and Services related expenditure,05/07/2019,-10,Director of Children's Services and Education
Entertainment,Amusement/Rec Serv - Def,Splashdown Waterpark,Supplies and Services related expenditure,05/07/2019,61.67,Director of Children's Services and Education
Retail,Grocery Stores/Supermarkets,Tesco Stores 5837,Supplies and Services related expenditure,05/07/2019,2.08,Director of Children's Services and Education
Retail,Grocery Stores/Supermarkets,Tesco Stores 5837,Supplies and Services related expenditure,05/07/2019,2.46,Director of Children's Services and Education
Entertainment,Motion Picture Theatres,Vue Cinemas,Supplies and Services related expenditure,05/07/2019,8.32,Director of Children's Services and Education
Eating And Drinking Places,Fast Food Restaurants,Costa Coffee 43041700,Supplies and Services related expenditure,05/07/2019,3.75,Director of Children's Services and Education
Other Supplies,Department Stores,Southern Co-Op 0018,Supplies and Services related expenditure,05/07/2019,6,Director of Children's Services and Education
Business To Business Facility/,Industrial Supplies - Def,Www.Lockandkey.Co.Uk,Supplies and Services related expenditure,05/07/2019,13.79,Director of Portsmouth International Port
Business To Business Facility/,Industrial Supplies - Def,Www.Arco.Co.Uk,Supplies and Services related expenditure,05/07/2019,-49.33,"Director of Housing, Neighbourhood and Building Services"
Other Supplies,Misc Speciality Retail,Amznmktplace,Supplies and Services related expenditure,05/07/2019,5.78,Director of Children's Services and Education
Other Supplies,Misc Speciality Retail,Amznmktplace,Premises related expenditure,05/07/2019,7.5,Director of Children's Services and Education
Government,Govt Serv - Default,Hampshire County Counc,Supplies and Services related expenditure,05/07/2019,13.52,Director of Children's Services and Education
Retail,Hobby/Toy/Game Stores,Collaborate And Innovate,Supplies and Services related expenditure,05/07/2019,38.32,Director of Children's Services and Education
Facilities/Repair Supplies,Lumber/Build. Supply Stores,C Brewer & Sons,Premises related expenditure,05/07/2019,67.75,Director of Children's Services and Education
Other Supplies,Discount Stores,Www.Argos.Co.Uk,Supplies and Services related expenditure,05/07/2019,86.59,Director of Children's Services and Education
Business Services,Business Services - Default,National Governance As,Supplies and Services related expenditure,05/07/2019,270,Director of Children's Services and Education
Miscellaneous,Fines,Combined Court Cen,Supplies and Services related expenditure,05/07/2019,455,Director of Children's Services and Education
Other Supplies,Discount Stores,Argos Ltd,Supplies and Services related expenditure,05/07/2019,10.99,Director of Children's Services and Education
Transportation,Passenger Railways,Ticketofficesale - Swtrainsports,Transport related expenditure,05/07/2019,104.9,Director of Children's Services and Education
Transportation,Passenger Railways,Ticketofficesale - Swtrainsports,Transport related expenditure,05/07/2019,60.5,Director of Children's Services and Education
Transportation,Passenger Railways,Ticketofficesale - Swtrainsports,Transport related expenditure,05/07/2019,60.5,Director of Children's Services and Education
Government,Govt Serv - Default,Portsmouth City Counci,Supplies and Services related expenditure,05/07/2019,462,Director of Children's Services and Education
Facilities/Repair Supplies,Lumber/Build. Supply Stores,B & Q 1260,Supplies and Services related expenditure,05/07/2019,2.23,Director of Adult Services
Eating And Drinking Places,Fast Food Restaurants,Subway,Supplies and Services related expenditure,05/07/2019,5.4,Director of Children's Services and Education
Retail,Sporting Goods Stores,Allans Marine,Supplies and Services related expenditure,05/07/2019,11.19,Director of Children's Services and Education
Retail,Misc Food Stores - Default,Shakeaway Southampton,Supplies and Services related expenditure,05/07/2019,4.58,Director of Children's Services and Education
Equipment And Furniture,Phone Serv/Equip Non-Util,Carphone Warehouse,Supplies and Services related expenditure,05/07/2019,33.33,Director of Children's Services and Education
Facilities/Repair Supplies,Home Supply Warehouse Stores,Screwfix Direct,Supplies and Services related expenditure,05/07/2019,93.27,"Director of Housing, Neighbourhood and Building Services"
Retail,Grocery Stores/Supermarkets,Co-Op Group 070639,Supplies and Services related expenditure,05/07/2019,1.79,Director of Children's Services and Education
Entertainment,Billiard/Pool Establishment,Craneswater Club,Supplies and Services related expenditure,05/07/2019,2.61,Director of Children's Services and Education
Eating And Drinking Places,Eating Places/Restaurants,Greggs Plc,Supplies and Services related expenditure,05/07/2019,1.13,Director of Children's Services and Education
Eating And Drinking Places,Eating Places/Restaurants,Greggs Plc,Supplies and Services related expenditure,05/07/2019,2.5,Director of Children's Services and Education
Retail,Misc Food Stores - Default,Gilletts Robuck,Supplies and Services related expenditure,05/07/2019,6.86,"Director of Housing, Neighbourhood and Building Services"
Caterers Food,Caterers,Bookerecomm,Supplies and Services related expenditure,05/07/2019,149.63,"Director of Housing, Neighbourhood and Building Services"
Retail,Grocery Stores/Supermarkets,Sainsburys S/mkts,Supplies and Services related expenditure,05/07/2019,22.6,Director of Children's Services and Education
Other Supplies,Misc Speciality Retail,Amznmktplace,Supplies and Services related expenditure,05/07/2019,13.01,Director of Children's Services and Education
Business To Business Eqpt/Furn,Stationery/Office Supplies,Www.Banneruk.Com,Supplies and Services related expenditure,05/07/2019,11.75,Director of Corporate Services
Business To Business Eqpt/Furn,Stationery/Office Supplies,Www.Banneruk.Com,Supplies and Services related expenditure,05/07/2019,37.54,Director of Corporate Services
Retail,Grocery Stores/Supermarkets,Tesco Stores 5475,Supplies and Services related expenditure,05/07/2019,9.1,Director of Children's Services and Education
Equipment And Furniture,Furniture/Equip Stores,Www.Ikea.Com,Supplies and Services related expenditure,05/07/2019,199.58,Director of Children's Services and Education
Other Supplies,Misc Speciality Retail,Www.Earlyyearsresource,Supplies and Services related expenditure,05/07/2019,259.75,Director of Children's Services and Education
Business To Business Eqpt/Furn,Stationery/Office Supplies,Www.Banneruk.Com,Supplies and Services related expenditure,05/07/2019,-8.42,"Director of Culture, Leisure & Regulatory Services"
Transportation,Travel Agencies,Expedia 7450326319593,Supplies and Services related expenditure,05/07/2019,128,Director of Children's Services and Education
Transportation,Travel Agencies,Expedia 7450326319593,Supplies and Services related expenditure,05/07/2019,128.5,Director of Children's Services and Education
Transportation,Travel Agencies,Expedia 7450326319593,Supplies and Services related expenditure,05/07/2019,128.5,Director of Children's Services and Education
Retail,Grocery Stores/Supermarkets,Asda Superstore,Supplies and Services related expenditure,05/07/2019,1.9,Director of Adult Services
Hotels And Motels,Lodging/Hotels/Motels/Resorts,The Royal Maritime Clu,Supplies and Services related expenditure,05/07/2019,15.58,"Director of Culture, Leisure & Regulatory Services"
Retail,Grocery Stores/Supermarkets,Wm Morrisons Store,Supplies and Services related expenditure,05/07/2019,10,Director of Children's Services and Education
Retail,Grocery Stores/Supermarkets,Wm Morrisons Store,Supplies and Services related expenditure,05/07/2019,43.26,Director of Children's Services and Education
Other Supplies,Discount Stores,Www.Argos.Co.Uk,Supplies and Services related expenditure,05/07/2019,-249.99,Director of Children's Services and Education
Transportation,"Parking Lots, Meters, Garages",3c_*portsmouth City Co,Transport related expenditure,05/07/2019,5.42,Director of Children's Services and Education
Business To Business Other Sup,Uniforms & Commercial Clothing,Myclothing,Supplies and Services related expenditure,05/07/2019,105,Director of Children's Services and Education
Business To Business Eqpt/Furn,Stationery/Office Supplies,Www.Banneruk.Com,Supplies and Services related expenditure,05/07/2019,4.57,"Director of Housing, Neighbourhood and Building Services"
Business To Business Eqpt/Furn,Stationery/Office Supplies,Www.Banneruk.Com,Supplies and Services related expenditure,05/07/2019,2.81,"Director of Culture, Leisure & Regulatory Services"
Medical,Hospitals,Royal Berks & Battle Hos,Agency and Third Party Payments related expenditure,05/07/2019,103,Director of Public Health
Retail,Grocery Stores/Supermarkets,Wm Morrisons Store,Supplies and Services related expenditure,05/07/2019,1.08,Director of Children's Services and Education
Retail,Grocery Stores/Supermarkets,Wm Morrisons Store,Supplies and Services related expenditure,05/07/2019,2.2,Director of Children's Services and Education
Entertainment,Amusement/Rec Serv - Def,D Day Museum,Supplies and Services related expenditure,05/07/2019,4.17,Director of Children's Services and Education
Facilities/Repair Supplies,Lumber/Build. Supply Stores,B & Q 1260,Supplies and Services related expenditure,05/07/2019,24.65,"Director of Housing, Neighbourhood and Building Services"
Business To Business Facility/,Industrial Supplies - Def,Www.Arco.Co.Uk,Supplies and Services related expenditure,05/07/2019,82.98,"Director of Housing, Neighbourhood and Building Services"
Business To Business Eqpt/Furn,Stationery/Office Supplies,Www.Banneruk.Com,Supplies and Services related expenditure,05/07/2019,34.6,Director of Adult Services
Other Supplies,Misc Speciality Retail,Amznmktplace,Supplies and Services related expenditure,05/07/2019,2.8,Director of Children's Services and Education
Other Supplies,Misc Speciality Retail,Amznmktplace,Supplies and Services related expenditure,05/07/2019,2.81,Director of Children's Services and Education
Other Supplies,Misc Speciality Retail,Amznmktplace,Premises related expenditure,05/07/2019,6.7,Director of Children's Services and Education
Retail,Grocery Stores/Supermarkets,Tesco Store 3055,Supplies and Services related expenditure,05/07/2019,2.85,"Director of Housing, Neighbourhood and Building Services"
Business To Business Services,Information Retrieval Services,Www.Restore.Co.Uk,Supplies and Services related expenditure,05/07/2019,8.97,Solent LEP
Business To Business Eqpt/Furn,Stationery/Office Supplies,Www.Banneruk.Com,Supplies and Services related expenditure,05/07/2019,-13.76,"Director of Housing, Neighbourhood and Building Services"
Eating And Drinking Places,Fast Food Restaurants,Costa Coffee 43040380,Supplies and Services related expenditure,05/07/2019,3.13,Director of Children's Services and Education
Eating And Drinking Places,Eating Places/Restaurants,Coffee Cup,Supplies and Services related expenditure,05/07/2019,10.88,Director of Children's Services and Education
Transportation,Passenger Railways,Ticketofficesale - Swtrains Cosh,Supplies and Services related expenditure,05/07/2019,64.2,Director of Children's Services and Education
Transportation,Passenger Railways,Ticketofficesale - Swtrains Cosh,Supplies and Services related expenditure,05/07/2019,-64.2,Director of Children's Services and Education
Utilities,Computer Network/Info Svcs,Fasthosts Internet,Supplies and Services related expenditure,05/07/2019,55,Director of Children's Services and Education
Other Supplies,Misc Speciality Retail,Www.Cgpbooks.Co.Uk,Supplies and Services related expenditure,05/07/2019,715.5,Director of Children's Services and Education
Facilities/Repair Supplies,Lumber/Build. Supply Stores,B & Q 1260,Supplies and Services related expenditure,05/07/2019,4.08,Director of Adult Services
Transportation,"Parking Lots, Meters, Garages",Gunwharf Quays,Transport related expenditure,05/07/2019,1.75,Director of Children's Services and Education
Retail,Grocery Stores/Supermarkets,Lidl Gb Portsmouth,Agency and Third Party Payments related expenditure,05/07/2019,1.77,Director of Children's Services and Education
Retail,Grocery Stores/Supermarkets,Lidl Gb Portsmouth,Agency and Third Party Payments related expenditure,05/07/2019,1.76,Director of Children's Services and Education
Entertainment,Motion Picture Theatres,Vue Cinemas,Agency and Third Party Payments related expenditure,05/07/2019,4.16,Director of Children's Services and Education
Entertainment,Motion Picture Theatres,Vue Cinemas,Agency and Third Party Payments related expenditure,05/07/2019,4.16,Director of Children's Services and Education
Retail,Grocery Stores/Supermarkets,Tesco Stores 4579,Supplies and Services related expenditure,05/07/2019,5.74,Director of Children's Services and Education
Retail,Grocery Stores/Supermarkets,Tesco Stores 4579,Supplies and Services related expenditure,05/07/2019,29.25,Director of Children's Services and Education
Transportation,"Parking Lots, Meters, Garages",Queen Alexandra Hopita,Transport related expenditure,05/07/2019,4.6,Director of Adult Services
Other Supplies,Misc Speciality Retail,Amznmktplace,Supplies and Services related expenditure,05/07/2019,4.98,Director of Children's Services and Education
Government,Govt Serv - Default,Hampshire County Counc,Supplies and Services related expenditure,05/07/2019,238.28,Director of Children's Services and Education
Retail,Grocery Stores/Supermarkets,Tesco Stores 6002,Supplies and Services related expenditure,05/07/2019,83.08,Director of Children's Services and Education
Retail,Grocery Stores/Supermarkets,Tesco Stores 6002,Supplies and Services related expenditure,05/07/2019,10.08,Director of Children's Services and Education
Miscellaneous,Other Direct Marketers,Findel Education,Supplies and Services related expenditure,05/07/2019,76.96,Director of Children's Services and Education
Auto/Vehicle Expenses,Automated Fuel Dispensers,Tesco Pay At Pump 4274,Transport related expenditure,05/07/2019,25.1,Director of Adult Services
Business To Business Eqpt/Furn,Stationery/Office Supplies,Www.Banneruk.Com,Supplies and Services related expenditure,05/07/2019,26.29,Director of Regeneration
Transportation,Local Commuter Transport,Hovertravel Ltd,Supplies and Services related expenditure,05/07/2019,24.2,Director of Children's Services and Education
Retail,Grocery Stores/Supermarkets,Tesco Stores 4611,Supplies and Services related expenditure,05/07/2019,3.3,"Director of Culture, Leisure & Regulatory Services"
Other Supplies,Misc Speciality Retail,Amznmktplace Amazon.Co.Uk,Supplies and Services related expenditure,05/07/2019,54.28,Director of Children's Services and Education
Facilities/Repair Supplies,Drapery & Upholstery Stores,Custom Blinds Ltd,Premises related expenditure,05/07/2019,250,Director of Portsmouth International Port
Miscellaneous,Continuity/Subscription Mercht,Amazon Prime Amzn.Co.Uk/P,Supplies and Services related expenditure,05/07/2019,-7.99,"Director of Culture, Leisure & Regulatory Services"
Other Supplies,Misc Speciality Retail,Amznmktplace,Supplies and Services related expenditure,05/07/2019,1.63,Director of Children's Services and Education
Business To Business Eqpt/Furn,Stationery/Office Supplies,Www.Banneruk.Com,Supplies and Services related expenditure,05/07/2019,40.77,Director of Children's Services and Education
Retail,Grocery Stores/Supermarkets,Lidl Gb Portsmouth,Premises related expenditure,05/07/2019,1.98,"Director of Housing, Neighbourhood and Building Services"
Retail,Grocery Stores/Supermarkets,Lidl Gb Portsmouth,Premises related expenditure,05/07/2019,1.65,"Director of Housing, Neighbourhood and Building Services"
Other Supplies,Discount Stores,Argos Ltd,Supplies and Services related expenditure,05/07/2019,208.33,Director of Children's Services and Education
Government,Govt Serv - Default,2maa010516171 Td E-Pmt,Supplies and Services related expenditure,05/07/2019,233.33,Director of Children's Services and Education
Other Supplies,Misc Speciality Retail,Amznmktplace Amazon.Co.Uk,Premises related expenditure,05/07/2019,11.67,Director of Children's Services and Education
Government,Govt Serv - Default,Hampshire County Counc,Supplies and Services related expenditure,05/07/2019,12.4,Director of Children's Services and Education
Other Supplies,Combination Catalog & Retail,Whsmith.Co.Uk,Supplies and Services related expenditure,05/07/2019,116.67,Director of Children's Services and Education
Eating And Drinking Places,Fast Food Restaurants,Pizza Hut,Supplies and Services related expenditure,06/07/2019,13.98,Director of Children's Services and Education
Other Supplies,Misc Speciality Retail,Amznmktplace,Supplies and Services related expenditure,06/07/2019,4.15,Director of Adult Services
Retail,Pet Stores/Food & Supply,Pets At Home Ltd,Premises related expenditure,06/07/2019,20,Director of Adult Services
Retail,Grocery Stores/Supermarkets,Lidl Gb Fareham,Supplies and Services related expenditure,06/07/2019,1.85,Director of Adult Services
Retail,Grocery Stores/Supermarkets,Asda Superstore,Supplies and Services related expenditure,06/07/2019,2.57,Director of Adult Services
Other Supplies,Misc Speciality Retail,Amazon.Co.Uk,Supplies and Services related expenditure,06/07/2019,28.32,Director of Adult Services
Retail,Drug Stores & Pharmacies,Superdrug Stores Plc,Supplies and Services related expenditure,06/07/2019,2.53,Director of Children's Services and Education
Retail,Hobby/Toy/Game Stores,Flyingtiger Whiteley 022,Supplies and Services related expenditure,06/07/2019,3.33,Director of Children's Services and Education
Facilities/Repair Supplies,Drapery & Upholstery Stores,Dunelm Ltd,Supplies and Services related expenditure,06/07/2019,14.05,Director of Children's Services and Education
Other Supplies,Misc Speciality Retail,Amznmktplace Amazon.Co.Uk,Supplies and Services related expenditure,06/07/2019,14.99,Director of Children's Services and Education
Eating And Drinking Places,Eating Places/Restaurants,Subway,Agency and Third Party Payments related expenditure,06/07/2019,9.48,Director of Children's Services and Education
Retail,Sporting Goods Stores,J D Sports Fashion Plc,Agency and Third Party Payments related expenditure,06/07/2019,22,Director of Children's Services and Education
Clothing/Shoes/Uniforms,Family Clothing Stores,Primark,Agency and Third Party Payments related expenditure,06/07/2019,40.5,Director of Children's Services and Education
Business To Business Facility/,Electrical Parts/Equipment,C.E.X Limited,Agency and Third Party Payments related expenditure,06/07/2019,5,Director of Children's Services and Education
Eating And Drinking Places,Fast Food Restaurants,Kfc Portsmouth,Supplies and Services related expenditure,06/07/2019,27.94,Director of Children's Services and Education
Other Supplies,Misc Speciality Retail,Amznmktplace Amazon.Co.Uk,Supplies and Services related expenditure,06/07/2019,2.44,Director of Children's Services and Education
Other Supplies,Misc Speciality Retail,Amznmktplace Amazon.Co.Uk,Supplies and Services related expenditure,06/07/2019,7.49,Director of Children's Services and Education
Business To Business Eqpt/Furn,Computer Software Stores,Oracle Uk Corporation,Employees related expenditure,06/07/2019,2205,Director of Corporate Services
Retail,Grocery Stores/Supermarkets,Tesco Stores 4579,Supplies and Services related expenditure,07/07/2019,3.8,Director of Children's Services and Education
Transportation,Passenger Railways,Trainline.Com,Supplies and Services related expenditure,07/07/2019,9.76,Director of Children's Services and Education
Retail,Grocery Stores/Supermarkets,Asda Groceries Online,Supplies and Services related expenditure,07/07/2019,5,Director of Children's Services and Education
Retail,Grocery Stores/Supermarkets,Tesco Stores 4579,Supplies and Services related expenditure,07/07/2019,9.33,Director of Children's Services and Education
Retail,Grocery Stores/Supermarkets,Tesco Stores 4579,Supplies and Services related expenditure,07/07/2019,90.16,Director of Children's Services and Education
Facilities/Repair Supplies,Lumber/Build. Supply Stores,B & Q 1260,Premises related expenditure,07/07/2019,18.34,Director of Children's Services and Education
Other Supplies,Misc Speciality Retail,Amazon.Co.Uk,Supplies and Services related expenditure,07/07/2019,22.38,Director of Adult Services
Other Supplies,Misc Speciality Retail,Amazon.Co.Uk,Supplies and Services related expenditure,07/07/2019,83.31,Director of Adult Services
Retail,Grocery Stores/Supermarkets,Www.Iceland.Co.Uk,Supplies and Services related expenditure,07/07/2019,2.5,Director of Adult Services
Retail,Grocery Stores/Supermarkets,Www.Iceland.Co.Uk,Supplies and Services related expenditure,07/07/2019,113.51,Director of Adult Services
Other Supplies,Misc Speciality Retail,Amazon.Co.Uk,Supplies and Services related expenditure,07/07/2019,13.54,Director of Children's Services and Education
Retail,Misc Food Stores - Default,Gilletts Tangiers,Supplies and Services related expenditure,07/07/2019,1.79,Director of Children's Services and Education
Transportation,"Parking Lots, Meters, Garages",Gunwharf Quays,Transport related expenditure,07/07/2019,5,Director of Children's Services and Education
Eating And Drinking Places,Fast Food Restaurants,McDonalds,Supplies and Services related expenditure,07/07/2019,4.17,Director of Children's Services and Education
Eating And Drinking Places,Fast Food Restaurants,McDonalds,Supplies and Services related expenditure,07/07/2019,1.67,Director of Children's Services and Education
Eating And Drinking Places,Fast Food Restaurants,McDonalds,Supplies and Services related expenditure,07/07/2019,0.8,Director of Children's Services and Education
Retail,Grocery Stores/Supermarkets,Tesco Stores 2494,Agency and Third Party Payments related expenditure,07/07/2019,20,Director of Children's Services and Education
Retail,Grocery Stores/Supermarkets,Sainsburys S/mkts,Supplies and Services related expenditure,07/07/2019,3.21,Director of Children's Services and Education
Retail,Grocery Stores/Supermarkets,Sainsburys S/mkts,Supplies and Services related expenditure,07/07/2019,20.49,Director of Children's Services and Education
Entertainment,Motion Picture Theatres,Vue Cinemas,Agency and Third Party Payments related expenditure,07/07/2019,23.96,Director of Children's Services and Education
Other Supplies,Misc Speciality Retail,Amznmktplace,Agency and Third Party Payments related expenditure,07/07/2019,7.41,Director of Children's Services and Education
Other Supplies,Misc Speciality Retail,Amznmktplace Amazon.Co.Uk,Supplies and Services related expenditure,07/07/2019,47.49,Director of Children's Services and Education
Retail,Grocery Stores/Supermarkets,Tesco Stores 4579,Supplies and Services related expenditure,07/07/2019,3.87,Director of Children's Services and Education
Transportation,Passenger Railways,Selfserve Ticket - Swtrains Frat,Supplies and Services related expenditure,07/07/2019,43.2,Director of Children's Services and Education
Other Supplies,Misc Speciality Retail,Amznmktplace Amazon.Co.Uk,Supplies and Services related expenditure,07/07/2019,17.77,Director of Children's Services and Education
Miscellaneous,Other Direct Marketers,Amazon.Co.Uk,Supplies and Services related expenditure,07/07/2019,22.49,Director of Children's Services and Education
Entertainment,Amusement/Rec Serv - Def,Iz *iflip Limited,Agency and Third Party Payments related expenditure,07/07/2019,6.46,Director of Children's Services and Education
Retail,Grocery Stores/Supermarkets,Tesco Stores 4579,Supplies and Services related expenditure,07/07/2019,10.13,Director of Children's Services and Education
Retail,Grocery Stores/Supermarkets,Tesco Stores 4579,Supplies and Services related expenditure,07/07/2019,39.99,Director of Children's Services and Education
Entertainment,Amusement/Rec Serv - Def,Iz *iflip Limited,Supplies and Services related expenditure,07/07/2019,2.5,Director of Children's Services and Education
Entertainment,Amusement/Rec Serv - Def,Iz *iflip Limited,Supplies and Services related expenditure,07/07/2019,2.5,Director of Children's Services and Education
Entertainment,Amusement/Rec Serv - Def,Iz *iflip Limited,Agency and Third Party Payments related expenditure,07/07/2019,5.25,Director of Children's Services and Education
Entertainment,Amusement/Rec Serv - Def,Iz *iflip Limited,Agency and Third Party Payments related expenditure,07/07/2019,5.25,Director of Children's Services and Education
Eating And Drinking Places,Eating Places/Restaurants,Flip Out Portsmouth,Agency and Third Party Payments related expenditure,07/07/2019,27,Director of Children's Services and Education
Eating And Drinking Places,Eating Places/Restaurants,Flip Out Portsmouth,Agency and Third Party Payments related expenditure,07/07/2019,27,Director of Children's Services and Education
Other Supplies,Misc Speciality Retail,Amznmktplace,Supplies and Services related expenditure,07/07/2019,33.98,Director of Finance & IT
Business Expenses/Services,News Dealers/Newsstands,Wh Smith,Supplies and Services related expenditure,07/07/2019,10.99,Director of Children's Services and Education
Automobile Services & Supplies,Service Stations,Asda Petrol 4583,Premises related expenditure,07/07/2019,38.57,"Director of Housing, Neighbourhood and Building Services"
Business To Business Other Sup,Uniforms & Commercial Clothing,Arco Ltd,Supplies and Services related expenditure,02/07/2019,14.48,"Director of Housing, Neighbourhood and Building Services"
Business To Business Other Sup,Uniforms & Commercial Clothing,Arco Ltd,Supplies and Services related expenditure,03/07/2019,61.44,"Director of Housing, Neighbourhood and Building Services"
Miscellaneous,Civic/Social/Fraternal Assc,Ncs Trust,Supplies and Services related expenditure,05/07/2019,20,Director of Children's Services and Education
Hotels And Motels,Premier Travel Inns,Premier Inn44024365,Agency and Third Party Payments related expenditure,07/07/2019,-71.25,"Director of Housing, Neighbourhood and Building Services"
Other Supplies,Misc Speciality Retail,Amznmktplace Amazon.Co.Uk,Supplies and Services related expenditure,07/07/2019,8.29,Director of Children's Services and Education
Other Supplies,Misc Speciality Retail,Amznmktplace Amazon.Co.Uk,Supplies and Services related expenditure,07/07/2019,14.99,Director of Children's Services and Education
Other Supplies,Misc Speciality Retail,Amznmktplace Amazon.Co.Uk,Supplies and Services related expenditure,07/07/2019,54.82,Director of Children's Services and Education
Other Supplies,Catalog Merchant,Www.Nisbets.Com,Supplies and Services related expenditure,07/07/2019,80.04,"Director of Culture, Leisure & Regulatory Services"
Other Supplies,Misc Speciality Retail,Amazon.Co.Uk,Premises related expenditure,08/07/2019,14.16,"Director of Housing, Neighbourhood and Building Services"
Business Expenses/Services,Postage Stamps,Post Office Counter,Supplies and Services related expenditure,08/07/2019,2.26,Director of Adult Services
Transportation,Passenger Railways,Trainline.Com,Transport related expenditure,08/07/2019,79.22,Director of Children's Services and Education
Freight/Courier/Warehouse Svcs,Public Warehousing,Big Yellow S S Portsmout,Premises related expenditure,08/07/2019,-148.46,"Director of Housing, Neighbourhood and Building Services"
Miscellaneous,Charitable/Soc Service Orgs,The Salvation Army,Capital related expenditure,08/07/2019,205,Capital - Housing RA
Hotels And Motels,Travelodge,Travelodge Gb0000,Agency and Third Party Payments related expenditure,08/07/2019,1172.46,"Director of Housing, Neighbourhood and Building Services"
Hotels And Motels,Travelodge,Travelodge Gb0000,Agency and Third Party Payments related expenditure,08/07/2019,73.5,"Director of Housing, Neighbourhood and Building Services"
Hotels And Motels,Travelodge,Travelodge Gb0000,Agency and Third Party Payments related expenditure,08/07/2019,1660.92,"Director of Housing, Neighbourhood and Building Services"
Hotels And Motels,Travelodge,Travelodge Gb0000,Agency and Third Party Payments related expenditure,08/07/2019,330.75,"Director of Housing, Neighbourhood and Building Services"
Hotels And Motels,Travelodge,Travelodge Gb0000,Agency and Third Party Payments related expenditure,08/07/2019,2254.67,"Director of Housing, Neighbourhood and Building Services"
Hotels And Motels,Travelodge,Travelodge Gb0000,Agency and Third Party Payments related expenditure,08/07/2019,441,"Director of Housing, Neighbourhood and Building Services"
Transportation,Passenger Railways,Selfserve Ticket - Swtrainsports,Supplies and Services related expenditure,08/07/2019,26,Director of Children's Services and Education
Business To Business Facility/,Industrial Supplies - Def,Www.Arco.Co.Uk,Supplies and Services related expenditure,08/07/2019,36.36,"Director of Housing, Neighbourhood and Building Services"
Equipment And Furniture,Household Appliance Stores,Wilko Retail Limit,Supplies and Services related expenditure,08/07/2019,10,"Director of Housing, Neighbourhood and Building Services"
Retail,Shoe Repair/Shine/Hat Clean,Timpson Ltd,Supplies and Services related expenditure,08/07/2019,8.33,"Director of Housing, Neighbourhood and Building Services"
Retail,Bakeries,Splits,Supplies and Services related expenditure,08/07/2019,4.6,Director of Children's Services and Education
Government,Govt Serv - Default,Dvla Vehicle Tax,Transport related expenditure,08/07/2019,262.5,"Director of Housing, Neighbourhood and Building Services"
Retail,Grocery Stores/Supermarkets,Tesco Store 3055,Supplies and Services related expenditure,08/07/2019,29.6,Director of Children's Services and Education
Retail,Grocery Stores/Supermarkets,Tesco Store 3055,Supplies and Services related expenditure,08/07/2019,25.62,Director of Children's Services and Education
Retail,Grocery Stores/Supermarkets,Tesco Store 3055,Supplies and Services related expenditure,08/07/2019,6.25,Director of Children's Services and Education
Retail,Grocery Stores/Supermarkets,Tesco Store 3055,Supplies and Services related expenditure,08/07/2019,23.24,Director of Children's Services and Education
Retail,Grocery Stores/Supermarkets,Tesco Store 3055,Supplies and Services related expenditure,08/07/2019,2.5,Director of Children's Services and Education
Retail,Grocery Stores/Supermarkets,Tesco Store 3055,Supplies and Services related expenditure,08/07/2019,53.09,Director of Children's Services and Education
Business To Business Eqpt/Furn,Stationery/Office Supplies,Www.Banneruk.Com,Supplies and Services related expenditure,08/07/2019,7.56,Director of Children's Services and Education
Business To Business Eqpt/Furn,Stationery/Office Supplies,Www.Banneruk.Com,Supplies and Services related expenditure,08/07/2019,67.38,Director of Children's Services and Education
Medical,Lab/Med/Hospital Equipment,Wightman & Parrish Ltd,Premises related expenditure,08/07/2019,144.12,"Director of Housing, Neighbourhood and Building Services"
Business To Business Facility/,Industrial Supplies - Def,Www.Arco.Co.Uk,Supplies and Services related expenditure,08/07/2019,398.07,"Director of Housing, Neighbourhood and Building Services"
Retail,Grocery Stores/Supermarkets,Asda Groceries Online,Supplies and Services related expenditure,08/07/2019,25.32,Director of Children's Services and Education
Retail,Grocery Stores/Supermarkets,Asda Groceries Online,Supplies and Services related expenditure,08/07/2019,180.29,Director of Children's Services and Education
Other Supplies,Department Stores,Southern Co-Op 0005,Supplies and Services related expenditure,08/07/2019,2.84,Director of Adult Services
Facilities/Repair Supplies,Lumber/Build. Supply Stores,B & Q 1260,Supplies and Services related expenditure,08/07/2019,7.45,"Director of Housing, Neighbourhood and Building Services"
Other Supplies,Misc Speciality Retail,Amznmktplace,Supplies and Services related expenditure,08/07/2019,9.16,Director of Children's Services and Education
Other Supplies,Misc Speciality Retail,Amznmktplace,Supplies and Services related expenditure,08/07/2019,4.49,Director of Children's Services and Education
Auto/Vehicle Dealers,Misc Auto Dealers - Default,Www.Agratech.Co.Uk,Supplies and Services related expenditure,08/07/2019,-33.55,"Director of Housing, Neighbourhood and Building Services"
Transportation,"Parking Lots, Meters, Garages",3c_*portsmouth City Co,Transport related expenditure,08/07/2019,10,Director of Children's Services and Education
Miscellaneous,Civic/Social/Fraternal Assc,Highstreetvouchers,Supplies and Services related expenditure,08/07/2019,60,Director of Corporate Services
Retail,Grocery Stores/Supermarkets,Asda Groceries Online,Supplies and Services related expenditure,08/07/2019,37.99,Director of Children's Services and Education
Retail,Grocery Stores/Supermarkets,Asda Groceries Online,Supplies and Services related expenditure,08/07/2019,59.93,Director of Children's Services and Education
Eating And Drinking Places,Eating Places/Restaurants,Greggs Plc,Supplies and Services related expenditure,08/07/2019,1.04,Director of Children's Services and Education
Eating And Drinking Places,Eating Places/Restaurants,Greggs Plc,Supplies and Services related expenditure,08/07/2019,4,Director of Children's Services and Education
Other Supplies,Department Stores,The Range,Supplies and Services related expenditure,08/07/2019,6.25,Director of Children's Services and Education
Transportation,Passenger Railways,Ticketofficesale - Swtrainsports,Transport related expenditure,08/07/2019,80.9,Director of Adult Services
Transportation,Passenger Railways,Selfserve Ticket - Swtrainsports,Transport related expenditure,08/07/2019,11,"Director of Housing, Neighbourhood and Building Services"
Transportation,Passenger Railways,Ticketofficesale - Swtrainsports,Transport related expenditure,08/07/2019,20.4,"Director of Housing, Neighbourhood and Building Services"
Entertainment,Motion Picture Theatres,Cea Card,Supplies and Services related expenditure,08/07/2019,6,Director of Adult Services
Business To Business Facility/,Industrial Supplies - Def,Www.Arco.Co.Uk,Supplies and Services related expenditure,08/07/2019,8.67,Director of Regeneration
Retail,Sporting Goods Stores,Fieldandtrek.Com,Supplies and Services related expenditure,08/07/2019,59.99,Director of Regeneration
Transportation,Marinas,Www.S3i.Co.Uk,Supplies and Services related expenditure,08/07/2019,23.41,"Director of Culture, Leisure & Regulatory Services"
Caterers Food,Caterers,Alliance Disposables,Supplies and Services related expenditure,08/07/2019,61.04,"Director of Culture, Leisure & Regulatory Services"
Business To Business Eqpt/Furn,Book Stores,Stationery Office Book,Supplies and Services related expenditure,08/07/2019,55.85,"Director of Housing, Neighbourhood and Building Services"
Transportation,"Parking Lots, Meters, Garages",3c_*portsmouth City Co,Transport related expenditure,08/07/2019,2.92,Director of Children's Services and Education
Freight/Courier/Warehouse Svcs,Public Warehousing,Www.Safestore.Co.Uk,Supplies and Services related expenditure,08/07/2019,360,Director of Children's Services and Education
Facilities/Repair Supplies,Lumber/Build. Supply Stores,Screwfix Portsmouth,Supplies and Services related expenditure,08/07/2019,45.83,"Director of Culture, Leisure & Regulatory Services"
Transportation,Passenger Railways,Ticketofficesale - Swtrainsports,Transport related expenditure,08/07/2019,54.4,Director of Regeneration
Transportation,Passenger Railways,Ticketofficesale - Swtrainsports,Transport related expenditure,08/07/2019,85.4,Director of Regeneration
Transportation,Passenger Railways,Ticketofficesale - Swtrainsports,Transport related expenditure,08/07/2019,85.4,Director of Regeneration
Transportation,Passenger Railways,Ticketofficesale - Swtrainsports,Transport related expenditure,08/07/2019,85.4,Director of Regeneration
Transportation,Passenger Railways,Ticketofficesale - Swtrainsports,Transport related expenditure,08/07/2019,256.2,Director of Regeneration
Transportation,Passenger Railways,Trainline,Transport related expenditure,08/07/2019,29.25,Director of Children's Services and Education
Entertainment,Member Clubs/Sport/Rec/Golf,Horizon Leisure Trust,Supplies and Services related expenditure,08/07/2019,3.3,Director of Adult Services
Transportation,Local Commuter Transport,Gosport Ferry Ltd,Supplies and Services related expenditure,08/07/2019,3.7,"Director of Culture, Leisure & Regulatory Services"
Eating And Drinking Places,Fast Food Restaurants,Subway Ocean Park,Supplies and Services related expenditure,08/07/2019,1.35,Director of Children's Services and Education
Eating And Drinking Places,Fast Food Restaurants,Subway Ocean Park,Supplies and Services related expenditure,08/07/2019,1.72,Director of Children's Services and Education
Transportation,Travel Agencies,Lucketts Travel Lt,Supplies and Services related expenditure,08/07/2019,52,Director of Adult Services
Other Supplies,Misc Speciality Retail,Amznmktplace,Supplies and Services related expenditure,08/07/2019,49.99,Director of Adult Services
Business To Business Facility/,Electrical Parts/Equipment,Edmundson Electrical,Premises related expenditure,08/07/2019,72.9,Director of Portsmouth International Port
Facilities/Repair Supplies,Hardware Stores,Hilti Centre Portsmouth,Premises related expenditure,08/07/2019,124.92,Director of Portsmouth International Port
Eating And Drinking Places,Fast Food Restaurants,Vines Kitchen,Supplies and Services related expenditure,08/07/2019,5.79,Director of Children's Services and Education
Retail,Grocery Stores/Supermarkets,Tesco Stores 4579,Supplies and Services related expenditure,08/07/2019,3.58,Director of Adult Services
Retail,Grocery Stores/Supermarkets,Tesco Stores 4579,Supplies and Services related expenditure,08/07/2019,17.56,Director of Adult Services
Retail,Grocery Stores/Supermarkets,Wm Morrisons Store,Supplies and Services related expenditure,08/07/2019,4.17,Director of Children's Services and Education
Eating And Drinking Places,Fast Food Restaurants,Subway Ocean Park,Supplies and Services related expenditure,08/07/2019,5.82,Director of Children's Services and Education
Retail,Grocery Stores/Supermarkets,Tesco Store 3055,Supplies and Services related expenditure,08/07/2019,2.5,Director of Children's Services and Education
Miscellaneous,Other Direct Marketers,Amazon.Co.Uk,Supplies and Services related expenditure,08/07/2019,10.44,Director of Adult Services
Eating And Drinking Places,Fast Food Restaurants,Costa Coffee 43038550,Supplies and Services related expenditure,08/07/2019,5.08,Director of Children's Services and Education
Eating And Drinking Places,Fast Food Restaurants,Costa Coffee 43038550,Supplies and Services related expenditure,08/07/2019,1.5,Director of Children's Services and Education
Business To Business Facility/,Industrial Supplies - Def,Www.Arco.Co.Uk,Supplies and Services related expenditure,08/07/2019,56.13,"Director of Housing, Neighbourhood and Building Services"
Medical,Lab/Med/Hospital Equipment,Wightman & Parrish Ltd,Premises related expenditure,08/07/2019,72.22,"Director of Housing, Neighbourhood and Building Services"
Other Supplies,Misc Speciality Retail,Amznmktplace Amazon.Co.Uk,Supplies and Services related expenditure,08/07/2019,14.16,Director of Children's Services and Education
Other Supplies,Discount Stores,Www.Argos.Co.Uk,Supplies and Services related expenditure,08/07/2019,24.12,Director of Children's Services and Education
Other Supplies,Misc Speciality Retail,Amznmktplace Amazon.Co.Uk,Supplies and Services related expenditure,08/07/2019,52.4,Director of Children's Services and Education
Equipment And Furniture,Furniture/Equip Stores,Www.Officefurnitureonl,Supplies and Services related expenditure,08/07/2019,79,Director of Children's Services and Education
Other Supplies,Misc Speciality Retail,Amznmktplace Amazon.Co.Uk,Supplies and Services related expenditure,08/07/2019,114,Director of Children's Services and Education
Business Services,Business Services - Default,Eb *portsmouth Inclusi,Supplies and Services related expenditure,08/07/2019,182.03,Director of Children's Services and Education
Retail,Grocery Stores/Supermarkets,Sainsburys S/mkts,Supplies and Services related expenditure,08/07/2019,10.15,Director of Children's Services and Education
Transportation,Passenger Railways,Www.Southwesttrains.Co,Transport related expenditure,08/07/2019,54.5,Director of Children's Services and Education
Transportation,Passenger Railways,Www.Southwesttrains.Co,Transport related expenditure,08/07/2019,163.4,Director of Children's Services and Education
Miscellaneous,Fines,Combined Court Cen,Supplies and Services related expenditure,08/07/2019,155,Director of Children's Services and Education
Transportation,Passenger Railways,Ticketofficesale - Swtrainsports,Transport related expenditure,08/07/2019,106,Director of Children's Services and Education
Retail,Grocery Stores/Supermarkets,Wm Morrisons Store,Supplies and Services related expenditure,08/07/2019,2.5,Director of Children's Services and Education
Retail,Grocery Stores/Supermarkets,Wm Morrisons Store,Supplies and Services related expenditure,08/07/2019,16,Director of Children's Services and Education
Retail,Grocery Stores/Supermarkets,Aldi Stores Ltd,Supplies and Services related expenditure,08/07/2019,2.83,Director of Children's Services and Education
Retail,Grocery Stores/Supermarkets,Aldi Stores Ltd,Supplies and Services related expenditure,08/07/2019,66.28,Director of Children's Services and Education
Retail,Grocery Stores/Supermarkets,Lidl Gb Portchester,Supplies and Services related expenditure,08/07/2019,8.32,Director of Children's Services and Education
Retail,Grocery Stores/Supermarkets,Lidl Gb Portchester,Supplies and Services related expenditure,08/07/2019,69.24,Director of Children's Services and Education
Facilities/Repair Supplies,Lumber/Build. Supply Stores,B & Q 1238,Supplies and Services related expenditure,08/07/2019,113.13,"Director of Housing, Neighbourhood and Building Services"
Retail,Grocery Stores/Supermarkets,Aldi Stores Ltd,Supplies and Services related expenditure,08/07/2019,3,Director of Children's Services and Education
Business Services,Business Services - Default,Www.Pmgltd.Co.Uk,Supplies and Services related expenditure,08/07/2019,199,"Director of Housing, Neighbourhood and Building Services"
Retail,Grocery Stores/Supermarkets,Asda Stores,Supplies and Services related expenditure,08/07/2019,6.71,Director of Adult Services
Transportation,"Parking Lots, Meters, Garages",Portsmouth City Co,Transport related expenditure,08/07/2019,1.6,Director of Adult Services
